{"text_format":"1","workbook":"xlsx","n_sheets":2,"sheets":["الصف الاول","الفصول"],"not_rendered":{"charts":0,"images":0,"macros":1,"external_links":0,"defined_names":3,"comments":1,"pivot_tables":0},"unopened":[],"bounds":{"document_bytes":16777216,"sheet_cells":100000,"rows_first":2000,"rows_last":500,"rows_between":2000,"halvings":0,"cell_chars":16384,"cell_head_chars":4096},"cells_cut":0,"cells_raw":0,"read":"whole","date_system":"1900"}

{"sheet":"الصف الاول","index":0,"n_rows":262,"n_cols":70,"rows_kept":262,"cut":false,"hidden":false,"merged":[[5,47,6,47],[5,0,6,0],[5,1,6,1],[5,34,6,34],[5,35,6,35],[5,36,6,36],[5,42,6,42],[5,43,6,43],[5,44,6,44],[5,45,6,45],[5,46,6,46],[5,37,6,37],[5,38,6,38],[5,39,6,39],[5,40,6,40],[5,41,6,41],[2,0,2,3],[2,5,3,14],[2,15,3,20],[3,0,3,3],[4,5,4,8],[4,9,4,12],[4,13,4,16],[4,17,4,31],[2,22,3,24],[2,25,3,26]]}
[null,1,null,"اكتب رقم الشهر",null,null,null,null,null,null,"انقر تغيير الشهر",null,null,null,null,null,null,null,null,"انقر تغيير السنة"]
[null,2026,null,"اكتب السنة"]
["إدارة غرب طنطا التعليمية",null,null,null,null,"سجل 5 سلوك للصف الأول الإعدادى شهر",null,null,null,null,null,null,null,null,null,{"$f":"DATE($B$2,$B$1,COLUMN(A:A))","v":"2026-01-01"},null,null,null,null,null,null,"فصل",null,null,"1/1"]
["مدرسة الشهيد مصطفى على عبدالرحمن",null,null,null,null,null,null,null,null,null,null,null,null,null,null,null,null,null,null,null,null,null,null,null,null,null,null,null,null,null,null,null,null,null,null,null,null,null,null,null,null,null,"صفحة رقم (              )",null,null,null,null,null,null,null,null,null,null,null,null,null,null,null,null,null,null,null,null,null,null,null,"صفحة رقم (              )"]
[]
["م","الإســـــم","الفصل",{"$f":"TEXT(D7,\"ddd\")","v":"الخميس"},{"$f":"TEXT(E7,\"ddd\")","v":"الجمعة"},"الأحد","الإثنين","الثلاثاء","الأربعاء","الخميس","الجمعة","السبت","الأحد","الإثنين","الثلاثاء","الأربعاء","الخميس","الجمعة","السبت","الأحد","الإثنين","الثلاثاء","الأربعاء","الخميس","الجمعة","السبت","الأحد","الإثنين","الثلاثاء","الأربعاء","الخميس","الجمعة","السبت","","غياب بعذر","بدون","الإجمالى","م","انذار اول\n و تاريخـــــــه","سببـــــــــه","انذار اول\n و تاريخـــــــه","سببـــــــــه","انذار اول\n و تاريخـــــــه","سببـــــــــه","الدرجـة المستحقـة","م","اسم التلميذ","الفصل","سبتمبر",null,"اكتوبر",null,"نوفمبر",null,"ديسمبر",null,"يناير",null,"فبراير",null,"مارس",null,"ابريل",null,"مايو",null,"يونيه",null,"الدرجـة المستحقـة","الفصل"]
[null,null,null,{"$f":"IF(COLUMN(A:A)<=DAY(EOMONTH(DATE($B$2,$B$1,1),0)),DATE($B$2,$B$1,COLUMN(A:A)),\"\")","v":"2026-01-01"},{"$f":"IF(COLUMN(B:B)<=DAY(EOMONTH(DATE($B$2,$B$1,1),0)),DATE($B$2,$B$1,COLUMN(B:B)),\"\")","v":"2026-01-02"},{"$f":"IF(COLUMN(D:D)<=DAY(EOMONTH(DATE($B$2,$B$1,1),0)),DATE($B$2,$B$1,COLUMN(D:D)),\"\")","v":"2026-01-04"},"2026-01-05","2026-01-06","2026-01-07","2026-01-08","2026-01-09","2026-01-10","2026-01-11","2026-01-12","2026-01-13","2026-01-14","2026-01-15","2026-01-16","2026-01-17","2026-01-18","2026-01-19","2026-01-20","2026-01-21","2026-01-22","2026-01-23","2026-01-24","2026-01-25","2026-01-26","2026-01-27","2026-01-28","2026-01-29","2026-01-30","2026-01-31","",null,null,null,null,null,null,null,null,null,null,null,null,null,null,"بعذر","بدون عذر","بعذر","بدون عذر","بعذر","بدون عذر","بعذر","بدون عذر","بعذر","بدون عذر","بعذر","بدون عذر","بعذر","بدون عذر","بعذر","بدون عذر","بعذر","بدون عذر","بعذر","بدون عذر"]
[{"$f":"SUBTOTAL(3,$B$8:B8)","v":1},"ابراهيم بدوى ابراهيم بدوى ابوغلق","1ـ1",null,null,null,null,null,null,null,null,null,null,null,null,null,null,null,null,null,null,null,null,null,null,null,null,null,null,null,null,null,null,null,null,null,null,{"$f":"SUBTOTAL(3,$B$8:B8)","v":1},"  /    /    ",null,"  /   /    ",null,"  /   /    ",null,null,{"$f":"SUBTOTAL(3,$B$8:B8)","v":1},{"$f":"B8","v":"ابراهيم بدوى ابراهيم بدوى ابوغلق"},{"$f":"C8","v":"1ـ1"},null,null,null,null,null,null,null,null,null,null,null,null,null,null,null,null,null,null,null,null,null,"1/1"]
[{"$f":"SUBTOTAL(3,$B$8:B9)","v":2},"ابراهيم عبدالعزيز عبدالفتاح ابوسنه","1ـ1",null,null,null,null,null,null,null,null,null,null,null,null,null,null,null,null,null,null,null,null,null,null,null,null,null,null,null,null,null,null,null,null,null,null,{"$f":"SUBTOTAL(3,$B$8:B9)","v":2},"  /    /    ",null,"  /   /    ",null,"  /   /    ",null,null,{"$f":"SUBTOTAL(3,$B$8:B9)","v":2},{"$f":"B9","v":"ابراهيم عبدالعزيز عبدالفتاح ابوسنه"},{"$f":"C9","v":"1ـ1"},null,null,null,null,null,null,null,null,null,null,null,null,null,null,null,null,null,null,null,null,null,"1/1"]
[{"$f":"SUBTOTAL(3,$B$8:B10)","v":3},"ابراهيم محمد ابراهيم مصطفى","1ـ1",null,null,null,null,null,null,null,null,null,null,null,null,null,null,null,null,null,null,null,null,null,null,null,null,null,null,null,null,null,null,null,null,null,null,{"$f":"SUBTOTAL(3,$B$8:B10)","v":3},"  /    /    ",null,"  /   /    ",null,"  /   /    ",null,null,{"$f":"SUBTOTAL(3,$B$8:B10)","v":3},"ابراهيم محمد ابراهيم مصطفى","1ـ1",null,null,null,null,null,null,null,null,null,null,null,null,null,null,null,null,null,null,null,null,null,"1/1"]
[{"$f":"SUBTOTAL(3,$B$8:B11)","v":4},"ابراهيم محمود فتحى ابراهيم","1ـ1",null,null,null,null,null,null,null,null,null,null,null,null,null,null,null,null,null,null,null,null,null,null,null,null,null,null,null,null,null,null,null,null,null,null,{"$f":"SUBTOTAL(3,$B$8:B11)","v":4},"  /    /    ",null,"  /   /    ",null,"  /   /    ",null,null,{"$f":"SUBTOTAL(3,$B$8:B11)","v":4},"ابراهيم محمود فتحى ابراهيم","1ـ1",null,null,null,null,null,null,null,null,null,null,null,null,null,null,null,null,null,null,null,null,null,"1/1"]
[{"$f":"SUBTOTAL(3,$B$8:B12)","v":5},"ابراهيم هانى محمد عبدالعزيز","1ـ1",null,null,null,null,null,null,null,null,null,null,null,null,null,null,null,null,null,null,null,null,null,null,null,null,null,null,null,null,null,null,null,null,null,null,{"$f":"SUBTOTAL(3,$B$8:B12)","v":5},"  /    /    ",null,"  /   /    ",null,"  /   /    ",null,null,{"$f":"SUBTOTAL(3,$B$8:B12)","v":5},"ابراهيم هانى محمد عبدالعزيز","1ـ1",null,null,null,null,null,null,null,null,null,null,null,null,null,null,null,null,null,null,null,null,null,"1/1"]
[{"$f":"SUBTOTAL(3,$B$8:B13)","v":6},"احمد اسلام احمد عطيه","1ـ1",null,null,null,null,null,null,null,null,null,null,null,null,null,null,null,null,null,null,null,null,null,null,null,null,null,null,null,null,null,null,null,null,null,null,{"$f":"SUBTOTAL(3,$B$8:B13)","v":6},"  /    /    ",null,"  /   /    ",null,"  /   /    ",null,null,{"$f":"SUBTOTAL(3,$B$8:B13)","v":6},"احمد اسلام احمد عطيه","1ـ1",null,null,null,null,null,null,null,null,null,null,null,null,null,null,null,null,null,null,null,null,null,"1/1"]
[{"$f":"SUBTOTAL(3,$B$8:B14)","v":7},"احمد اسماعيل المحمدى اسماعيل","1ـ1",null,null,null,null,null,null,null,null,null,null,null,null,null,null,null,null,null,null,null,null,null,null,null,null,null,null,null,null,null,null,null,null,null,null,{"$f":"SUBTOTAL(3,$B$8:B14)","v":7},"  /    /    ",null,"  /   /    ",null,"  /   /    ",null,null,{"$f":"SUBTOTAL(3,$B$8:B14)","v":7},"احمد اسماعيل المحمدى اسماعيل","1ـ1",null,null,null,null,null,null,null,null,null,null,null,null,null,null,null,null,null,null,null,null,null,"1/1"]
[{"$f":"SUBTOTAL(3,$B$8:B15)","v":8},"احمد انس محمد عبدالتواب","1ـ1",null,null,null,null,null,null,null,null,null,null,null,null,null,null,null,null,null,null,null,null,null,null,null,null,null,null,null,null,null,null,null,null,null,null,{"$f":"SUBTOTAL(3,$B$8:B15)","v":8},"  /    /    ",null,"  /   /    ",null,"  /   /    ",null,null,{"$f":"SUBTOTAL(3,$B$8:B15)","v":8},"احمد انس محمد عبدالتواب","1ـ1",null,null,null,null,null,null,null,null,null,null,null,null,null,null,null,null,null,null,null,null,null,"1/1"]
[{"$f":"SUBTOTAL(3,$B$8:B16)","v":9},"احمد على احمد على احمد ابو حاج","1ـ1",null,null,null,null,null,null,null,null,null,null,null,null,null,null,null,null,null,null,null,null,null,null,null,null,null,null,null,null,null,null,null,null,null,null,{"$f":"SUBTOTAL(3,$B$8:B16)","v":9},"  /    /    ",null,"  /   /    ",null,"  /   /    ",null,null,{"$f":"SUBTOTAL(3,$B$8:B16)","v":9},"احمد على احمد على احمد ابو حاج","1ـ1",null,null,null,null,null,null,null,null,null,null,null,null,null,null,null,null,null,null,null,null,null,"1/1"]
[{"$f":"SUBTOTAL(3,$B$8:B17)","v":10},"احمد محسن عبدالمجيد الدسوقى حسن","1ـ1",null,null,null,null,null,null,null,null,null,null,null,null,null,null,null,null,null,null,null,null,null,null,null,null,null,null,null,null,null,null,null,null,null,null,{"$f":"SUBTOTAL(3,$B$8:B17)","v":10},"  /    /    ",null,"  /   /    ",null,"  /   /    ",null,null,{"$f":"SUBTOTAL(3,$B$8:B17)","v":10},"احمد محسن عبدالمجيد الدسوقى حسن","1ـ1",null,null,null,null,null,null,null,null,null,null,null,null,null,null,null,null,null,null,null,null,null,"1/1"]
[{"$f":"SUBTOTAL(3,$B$8:B18)","v":11},"احمد محمد عبدالمجيد الشيخ","1ـ1",null,null,null,null,null,null,null,null,null,null,null,null,null,null,null,null,null,null,null,null,null,null,null,null,null,null,null,null,null,null,null,null,null,null,{"$f":"SUBTOTAL(3,$B$8:B18)","v":11},"  /    /    ",null,"  /   /    ",null,"  /   /    ",null,null,{"$f":"SUBTOTAL(3,$B$8:B18)","v":11},"احمد محمد عبدالمجيد الشيخ","1ـ1",null,null,null,null,null,null,null,null,null,null,null,null,null,null,null,null,null,null,null,null,null,"1/1"]
[{"$f":"SUBTOTAL(3,$B$8:B19)","v":12},"احمد محمود عادل محمد الجعار","1ـ1",null,null,null,null,null,null,null,null,null,null,null,null,null,null,null,null,null,null,null,null,null,null,null,null,null,null,null,null,null,null,null,null,null,null,{"$f":"SUBTOTAL(3,$B$8:B19)","v":12},"  /    /    ",null,"  /   /    ",null,"  /   /    ",null,null,{"$f":"SUBTOTAL(3,$B$8:B19)","v":12},"احمد محمود عادل محمد الجعار","1ـ1",null,null,null,null,null,null,null,null,null,null,null,null,null,null,null,null,null,null,null,null,null,"1/1"]
[{"$f":"SUBTOTAL(3,$B$8:B20)","v":13},"احمد ياسر احمد عبدالعزيز على","1ـ1",null,null,null,null,null,null,null,null,null,null,null,null,null,null,null,null,null,null,null,null,null,null,null,null,null,null,null,null,null,null,null,null,null,null,{"$f":"SUBTOTAL(3,$B$8:B20)","v":13},"  /    /    ",null,"  /   /    ",null,"  /   /    ",null,null,{"$f":"SUBTOTAL(3,$B$8:B20)","v":13},"احمد ياسر احمد عبدالعزيز على","1ـ1",null,null,null,null,null,null,null,null,null,null,null,null,null,null,null,null,null,null,null,null,null,"1/1"]
[{"$f":"SUBTOTAL(3,$B$8:B21)","v":14},"ادم احمد عبدالمنعم نمر","1ـ1",null,null,null,null,null,null,null,null,null,null,null,null,null,null,null,null,null,null,null,null,null,null,null,null,null,null,null,null,null,null,null,null,null,null,{"$f":"SUBTOTAL(3,$B$8:B21)","v":14},"  /    /    ",null,"  /   /    ",null,"  /   /    ",null,null,{"$f":"SUBTOTAL(3,$B$8:B21)","v":14},"ادم احمد عبدالمنعم نمر","1ـ1",null,null,null,null,null,null,null,null,null,null,null,null,null,null,null,null,null,null,null,null,null,"1/1"]
[{"$f":"SUBTOTAL(3,$B$8:B22)","v":15},"ادم رضا الدسوقى محمد الجعار","1ـ1",null,null,null,null,null,null,null,null,null,null,null,null,null,null,null,null,null,null,null,null,null,null,null,null,null,null,null,null,null,null,null,null,null,null,{"$f":"SUBTOTAL(3,$B$8:B22)","v":15},"  /    /    ",null,"  /   /    ",null,"  /   /    ",null,null,{"$f":"SUBTOTAL(3,$B$8:B22)","v":15},"ادم رضا الدسوقى محمد الجعار","1ـ1",null,null,null,null,null,null,null,null,null,null,null,null,null,null,null,null,null,null,null,null,null,"1/1"]
[{"$f":"SUBTOTAL(3,$B$8:B23)","v":16},"ادم سامح محمد عثمان محمود","1ـ1",null,null,null,null,null,null,null,null,null,null,null,null,null,null,null,null,null,null,null,null,null,null,null,null,null,null,null,null,null,null,null,null,null,null,{"$f":"SUBTOTAL(3,$B$8:B23)","v":16},"  /    /    ",null,"  /   /    ",null,"  /   /    ",null,null,{"$f":"SUBTOTAL(3,$B$8:B23)","v":16},"ادم سامح محمد عثمان محمود","1ـ1",null,null,null,null,null,null,null,null,null,null,null,null,null,null,null,null,null,null,null,null,null,"1/1"]
[{"$f":"SUBTOTAL(3,$B$8:B24)","v":17},"ادم عمرو الديب الششتاوى","1ـ1",null,null,null,null,null,null,null,null,null,null,null,null,null,null,null,null,null,null,null,null,null,null,null,null,null,null,null,null,null,null,null,null,null,null,{"$f":"SUBTOTAL(3,$B$8:B24)","v":17},"  /    /    ",null,"  /   /    ",null,"  /   /    ",null,null,{"$f":"SUBTOTAL(3,$B$8:B24)","v":17},"ادم عمرو الديب الششتاوى","1ـ1",null,null,null,null,null,null,null,null,null,null,null,null,null,null,null,null,null,null,null,null,null,"1/1"]
[{"$f":"SUBTOTAL(3,$B$8:B25)","v":18},"ادهم احمد ابوالمجد الجندى","1ـ1",null,null,null,null,null,null,null,null,null,null,null,null,null,null,null,null,null,null,null,null,null,null,null,null,null,null,null,null,null,null,null,null,null,null,{"$f":"SUBTOTAL(3,$B$8:B25)","v":18},"  /    /    ",null,"  /   /    ",null,"  /   /    ",null,null,{"$f":"SUBTOTAL(3,$B$8:B25)","v":18},"ادهم احمد ابوالمجد الجندى","1ـ1",null,null,null,null,null,null,null,null,null,null,null,null,null,null,null,null,null,null,null,null,null,"1/1"]
[{"$f":"SUBTOTAL(3,$B$8:B26)","v":19},"ادهم شوقى عبدالوهاب محمد","1ـ1",null,null,null,null,null,null,null,null,null,null,null,null,null,null,null,null,null,null,null,null,null,null,null,null,null,null,null,null,null,null,null,null,null,null,{"$f":"SUBTOTAL(3,$B$8:B26)","v":19},"  /    /    ",null,"  /   /    ",null,"  /   /    ",null,null,{"$f":"SUBTOTAL(3,$B$8:B26)","v":19},"ادهم شوقى عبدالوهاب محمد","1ـ1",null,null,null,null,null,null,null,null,null,null,null,null,null,null,null,null,null,null,null,null,null,"1/1"]
[{"$f":"SUBTOTAL(3,$B$8:B27)","v":20},"السيد عبدالخالق السيد السيد","1ـ1",null,null,null,null,null,null,null,null,null,null,null,null,null,null,null,null,null,null,null,null,null,null,null,null,null,null,null,null,null,null,null,null,null,null,{"$f":"SUBTOTAL(3,$B$8:B27)","v":20},"  /    /    ",null,"  /   /    ",null,"  /   /    ",null,null,{"$f":"SUBTOTAL(3,$B$8:B27)","v":20},"السيد عبدالخالق السيد السيد","1ـ1",null,null,null,null,null,null,null,null,null,null,null,null,null,null,null,null,null,null,null,null,null,"1/1"]
[{"$f":"SUBTOTAL(3,$B$8:B28)","v":21},"اياد ابراهيم السيد حسن الزيات","1ـ1",null,null,null,null,null,null,null,null,null,null,null,null,null,null,null,null,null,null,null,null,null,null,null,null,null,null,null,null,null,null,null,null,null,null,{"$f":"SUBTOTAL(3,$B$8:B28)","v":21},"  /    /    ",null,"  /   /    ",null,"  /   /    ",null,null,{"$f":"SUBTOTAL(3,$B$8:B28)","v":21},"اياد ابراهيم السيد حسن الزيات","1ـ1",null,null,null,null,null,null,null,null,null,null,null,null,null,null,null,null,null,null,null,null,null,"1/1"]
[{"$f":"SUBTOTAL(3,$B$8:B29)","v":22},"اياد عبدالمجيد السيد عبدالمجيد لموض","1ـ1",null,null,null,null,null,null,null,null,null,null,null,null,null,null,null,null,null,null,null,null,null,null,null,null,null,null,null,null,null,null,null,null,null,null,{"$f":"SUBTOTAL(3,$B$8:B29)","v":22},"  /    /    ",null,"  /   /    ",null,"  /   /    ",null,null,{"$f":"SUBTOTAL(3,$B$8:B29)","v":22},"اياد عبدالمجيد السيد عبدالمجيد لموض","1ـ1",null,null,null,null,null,null,null,null,null,null,null,null,null,null,null,null,null,null,null,null,null,"1/1"]
[{"$f":"SUBTOTAL(3,$B$8:B30)","v":22},"اياد محمد السيد عبدالعال","1ـ2",null,null,null,null,null,null,null,null,null,null,null,null,null,null,null,null,null,null,null,null,null,null,null,null,null,null,null,null,null,null,null,null,null,null,{"$f":"SUBTOTAL(3,$B$8:B30)","v":22},"  /    /    ",null,"  /   /    ",null,"  /   /    ",null,null,{"$f":"SUBTOTAL(3,$B$8:B30)","v":22},"اياد محمد السيد عبدالعال","1ـ2",null,null,null,null,null,null,null,null,null,null,null,null,null,null,null,null,null,null,null,null,null,"2/1"]
[{"$f":"SUBTOTAL(3,$B$8:B31)","v":22},"اياد وليد عزب الخولى","1ـ2",null,null,null,null,null,null,null,null,null,null,null,null,null,null,null,null,null,null,null,null,null,null,null,null,null,null,null,null,null,null,null,null,null,null,{"$f":"SUBTOTAL(3,$B$8:B31)","v":22},"  /    /    ",null,"  /   /    ",null,"  /   /    ",null,null,{"$f":"SUBTOTAL(3,$B$8:B31)","v":22},"اياد وليد عزب الخولى","1ـ2",null,null,null,null,null,null,null,null,null,null,null,null,null,null,null,null,null,null,null,null,null,"2/1"]
[{"$f":"SUBTOTAL(3,$B$8:B32)","v":22},"بسيونى عبدالحميد بسيونى عبدالحميد","1ـ2",null,null,null,null,null,null,null,null,null,null,null,null,null,null,null,null,null,null,null,null,null,null,null,null,null,null,null,null,null,null,null,null,null,null,{"$f":"SUBTOTAL(3,$B$8:B32)","v":22},"  /    /    ",null,"  /   /    ",null,"  /   /    ",null,null,{"$f":"SUBTOTAL(3,$B$8:B32)","v":22},"بسيونى عبدالحميد بسيونى عبدالحميد","1ـ2",null,null,null,null,null,null,null,null,null,null,null,null,null,null,null,null,null,null,null,null,null,"2/1"]
[{"$f":"SUBTOTAL(3,$B$8:B33)","v":22},"بلال طه حسين سالم عيد","1ـ2",null,null,null,null,null,null,null,null,null,null,null,null,null,null,null,null,null,null,null,null,null,null,null,null,null,null,null,null,null,null,null,null,null,null,{"$f":"SUBTOTAL(3,$B$8:B33)","v":22},"  /    /    ",null,"  /   /    ",null,"  /   /    ",null,null,{"$f":"SUBTOTAL(3,$B$8:B33)","v":22},"بلال طه حسين سالم عيد","1ـ2",null,null,null,null,null,null,null,null,null,null,null,null,null,null,null,null,null,null,null,null,null,"2/1"]
[{"$f":"SUBTOTAL(3,$B$8:B34)","v":22},"حذيفه محمد ابراهيم ابراهيم خلف","1ـ2",null,null,null,null,null,null,null,null,null,null,null,null,null,null,null,null,null,null,null,null,null,null,null,null,null,null,null,null,null,null,null,null,null,null,{"$f":"SUBTOTAL(3,$B$8:B34)","v":22},"  /    /    ",null,"  /   /    ",null,"  /   /    ",null,null,{"$f":"SUBTOTAL(3,$B$8:B34)","v":22},"حذيفه محمد ابراهيم ابراهيم خلف","1ـ2",null,null,null,null,null,null,null,null,null,null,null,null,null,null,null,null,null,null,null,null,null,"2/1"]
[{"$f":"SUBTOTAL(3,$B$8:B35)","v":22},"رحيم محمد رمضان على مبروك","1ـ2",null,null,null,null,null,null,null,null,null,null,null,null,null,null,null,null,null,null,null,null,null,null,null,null,null,null,null,null,null,null,null,null,null,null,{"$f":"SUBTOTAL(3,$B$8:B35)","v":22},"  /    /    ",null,"  /   /    ",null,"  /   /    ",null,null,{"$f":"SUBTOTAL(3,$B$8:B35)","v":22},"رحيم محمد رمضان على مبروك","1ـ2",null,null,null,null,null,null,null,null,null,null,null,null,null,null,null,null,null,null,null,null,null,"2/1"]
[{"$f":"SUBTOTAL(3,$B$8:B36)","v":22},"زياد اشرف نبوى ابراهيم","1ـ2",null,null,null,null,null,null,null,null,null,null,null,null,null,null,null,null,null,null,null,null,null,null,null,null,null,null,null,null,null,null,null,null,null,null,{"$f":"SUBTOTAL(3,$B$8:B36)","v":22},"  /    /    ",null,"  /   /    ",null,"  /   /    ",null,null,{"$f":"SUBTOTAL(3,$B$8:B36)","v":22},"زياد اشرف نبوى ابراهيم","1ـ2",null,null,null,null,null,null,null,null,null,null,null,null,null,null,null,null,null,null,null,null,null,"2/1"]
[{"$f":"SUBTOTAL(3,$B$8:B37)","v":22},"زياد صلاح عبدالفتاح محمد","1ـ2",null,null,null,null,null,null,null,null,null,null,null,null,null,null,null,null,null,null,null,null,null,null,null,null,null,null,null,null,null,null,null,null,null,null,{"$f":"SUBTOTAL(3,$B$8:B37)","v":22},"  /    /    ",null,"  /   /    ",null,"  /   /    ",null,null,{"$f":"SUBTOTAL(3,$B$8:B37)","v":22},"زياد صلاح عبدالفتاح محمد","1ـ2",null,null,null,null,null,null,null,null,null,null,null,null,null,null,null,null,null,null,null,null,null,"2/1"]
[{"$f":"SUBTOTAL(3,$B$8:B38)","v":22},"سالم محمد سالم حامد الخطيب","1ـ2",null,null,null,null,null,null,null,null,null,null,null,null,null,null,null,null,null,null,null,null,null,null,null,null,null,null,null,null,null,null,null,null,null,null,{"$f":"SUBTOTAL(3,$B$8:B38)","v":22},"  /    /    ",null,"  /   /    ",null,"  /   /    ",null,null,{"$f":"SUBTOTAL(3,$B$8:B38)","v":22},"سالم محمد سالم حامد الخطيب","1ـ2",null,null,null,null,null,null,null,null,null,null,null,null,null,null,null,null,null,null,null,null,null,"2/1"]
[{"$f":"SUBTOTAL(3,$B$8:B39)","v":22},"سالم محمود سالم محمد الخطيب","1ـ2",null,null,null,null,null,null,null,null,null,null,null,null,null,null,null,null,null,null,null,null,null,null,null,null,null,null,null,null,null,null,null,null,null,null,{"$f":"SUBTOTAL(3,$B$8:B39)","v":22},"  /    /    ",null,"  /   /    ",null,"  /   /    ",null,null,{"$f":"SUBTOTAL(3,$B$8:B39)","v":22},"سالم محمود سالم محمد الخطيب","1ـ2",null,null,null,null,null,null,null,null,null,null,null,null,null,null,null,null,null,null,null,null,null,"2/1"]
[{"$f":"SUBTOTAL(3,$B$8:B40)","v":22},"سيف محمد على عبداللطيف تركى","1ـ2",null,null,null,null,null,null,null,null,null,null,null,null,null,null,null,null,null,null,null,null,null,null,null,null,null,null,null,null,null,null,null,null,null,null,{"$f":"SUBTOTAL(3,$B$8:B40)","v":22},"  /    /    ",null,"  /   /    ",null,"  /   /    ",null,null,{"$f":"SUBTOTAL(3,$B$8:B40)","v":22},"سيف محمد على عبداللطيف تركى","1ـ2",null,null,null,null,null,null,null,null,null,null,null,null,null,null,null,null,null,null,null,null,null,"2/1"]
[{"$f":"SUBTOTAL(3,$B$8:B41)","v":22},"صلاح احمد صلاح مرسى عبدالدايم","1ـ2",null,null,null,null,null,null,null,null,null,null,null,null,null,null,null,null,null,null,null,null,null,null,null,null,null,null,null,null,null,null,null,null,null,null,{"$f":"SUBTOTAL(3,$B$8:B41)","v":22},"  /    /    ",null,"  /   /    ",null,"  /   /    ",null,null,{"$f":"SUBTOTAL(3,$B$8:B41)","v":22},"صلاح احمد صلاح مرسى عبدالدايم","1ـ2",null,null,null,null,null,null,null,null,null,null,null,null,null,null,null,null,null,null,null,null,null,"2/1"]
[{"$f":"SUBTOTAL(3,$B$8:B42)","v":22},"عاصم هيثم محمد عبدالعاطى","1ـ2",null,null,null,null,null,null,null,null,null,null,null,null,null,null,null,null,null,null,null,null,null,null,null,null,null,null,null,null,null,null,null,null,null,null,{"$f":"SUBTOTAL(3,$B$8:B42)","v":22},"  /    /    ",null,"  /   /    ",null,"  /   /    ",null,null,{"$f":"SUBTOTAL(3,$B$8:B42)","v":22},"عاصم هيثم محمد عبدالعاطى","1ـ2",null,null,null,null,null,null,null,null,null,null,null,null,null,null,null,null,null,null,null,null,null,"2/1"]
[{"$f":"SUBTOTAL(3,$B$8:B43)","v":22},"عبد الحليم محمد عبد الجليم على نصار","1ـ2",null,null,null,null,null,null,null,null,null,null,null,null,null,null,null,null,null,null,null,null,null,null,null,null,null,null,null,null,null,null,null,null,null,null,{"$f":"SUBTOTAL(3,$B$8:B43)","v":22},"  /    /    ",null,"  /   /    ",null,"  /   /    ",null,null,{"$f":"SUBTOTAL(3,$B$8:B43)","v":22},"عبد الحليم محمد عبد الجليم على نصار","1ـ2",null,null,null,null,null,null,null,null,null,null,null,null,null,null,null,null,null,null,null,null,null,"2/1"]
[{"$f":"SUBTOTAL(3,$B$8:B44)","v":22},"عبدالرحمن محمد ابراهيم السيد عبدالهادى","1ـ2",null,null,null,null,null,null,null,null,null,null,null,null,null,null,null,null,null,null,null,null,null,null,null,null,null,null,null,null,null,null,null,null,null,null,{"$f":"SUBTOTAL(3,$B$8:B44)","v":22},"  /    /    ",null,"  /   /    ",null,"  /   /    ",null,null,{"$f":"SUBTOTAL(3,$B$8:B44)","v":22},"عبدالرحمن محمد ابراهيم السيد عبدالهادى","1ـ2",null,null,null,null,null,null,null,null,null,null,null,null,null,null,null,null,null,null,null,null,null,"2/1"]
[{"$f":"SUBTOTAL(3,$B$8:B45)","v":22},"عبدالرحمن محمد عبد الهادى محمد البرل","1ـ2",null,null,null,null,null,null,null,null,null,null,null,null,null,null,null,null,null,null,null,null,null,null,null,null,null,null,null,null,null,null,null,null,null,null,{"$f":"SUBTOTAL(3,$B$8:B45)","v":22},"  /    /    ",null,"  /   /    ",null,"  /   /    ",null,null,{"$f":"SUBTOTAL(3,$B$8:B45)","v":22},"عبدالرحمن محمد عبد الهادى محمد البرل","1ـ2",null,null,null,null,null,null,null,null,null,null,null,null,null,null,null,null,null,null,null,null,null,"2/1"]
[{"$f":"SUBTOTAL(3,$B$8:B46)","v":22},"عبدالقادر عبدالحميد عبدالقادر عبدالحميد","1ـ2",null,null,null,null,null,null,null,null,null,null,null,null,null,null,null,null,null,null,null,null,null,null,null,null,null,null,null,null,null,null,null,null,null,null,{"$f":"SUBTOTAL(3,$B$8:B46)","v":22},"  /    /    ",null,"  /   /    ",null,"  /   /    ",null,null,{"$f":"SUBTOTAL(3,$B$8:B46)","v":22},"عبدالقادر عبدالحميد عبدالقادر عبدالحميد","1ـ2",null,null,null,null,null,null,null,null,null,null,null,null,null,null,null,null,null,null,null,null,null,"2/1"]
[{"$f":"SUBTOTAL(3,$B$8:B47)","v":22},"عبدالله هانى محمد جادو","1ـ2",null,null,null,null,null,null,null,null,null,null,null,null,null,null,null,null,null,null,null,null,null,null,null,null,null,null,null,null,null,null,null,null,null,null,{"$f":"SUBTOTAL(3,$B$8:B47)","v":22},"  /    /    ",null,"  /   /    ",null,"  /   /    ",null,null,{"$f":"SUBTOTAL(3,$B$8:B47)","v":22},"عبدالله هانى محمد جادو","1ـ2",null,null,null,null,null,null,null,null,null,null,null,null,null,null,null,null,null,null,null,null,null,"2/1"]
[{"$f":"SUBTOTAL(3,$B$8:B48)","v":22},"عبدالمنعم ياسر عبدالمنعم عبد الواحد بخيت","1ـ2",null,null,null,null,null,null,null,null,null,null,null,null,null,null,null,null,null,null,null,null,null,null,null,null,null,null,null,null,null,null,null,null,null,null,{"$f":"SUBTOTAL(3,$B$8:B48)","v":22},"  /    /    ",null,"  /   /    ",null,"  /   /    ",null,null,{"$f":"SUBTOTAL(3,$B$8:B48)","v":22},"عبدالمنعم ياسر عبدالمنعم عبد الواحد بخيت","1ـ2",null,null,null,null,null,null,null,null,null,null,null,null,null,null,null,null,null,null,null,null,null,"2/1"]
[{"$f":"SUBTOTAL(3,$B$8:B49)","v":22},"عثمان محمد عثمان يونس عيسى","1ـ2",null,null,null,null,null,null,null,null,null,null,null,null,null,null,null,null,null,null,null,null,null,null,null,null,null,null,null,null,null,null,null,null,null,null,{"$f":"SUBTOTAL(3,$B$8:B49)","v":22},"  /    /    ",null,"  /   /    ",null,"  /   /    ",null,null,{"$f":"SUBTOTAL(3,$B$8:B49)","v":22},"عثمان محمد عثمان يونس عيسى","1ـ2",null,null,null,null,null,null,null,null,null,null,null,null,null,null,null,null,null,null,null,null,null,"2/1"]
[{"$f":"SUBTOTAL(3,$B$8:B50)","v":22},"عماد احمد عماد عبدالغنى ابوسنه","1ـ3",null,null,null,null,null,null,null,null,null,null,null,null,null,null,null,null,null,null,null,null,null,null,null,null,null,null,null,null,null,null,null,null,null,null,{"$f":"SUBTOTAL(3,$B$8:B50)","v":22},"  /    /    ",null,"  /   /    ",null,"  /   /    ",null,null,{"$f":"SUBTOTAL(3,$B$8:B50)","v":22},"عماد احمد عماد عبدالغنى ابوسنه","1ـ3",null,null,null,null,null,null,null,null,null,null,null,null,null,null,null,null,null,null,null,null,null,"3/1"]
[{"$f":"SUBTOTAL(3,$B$8:B51)","v":22},"عمار سمير ربىع دراز","1ـ3",null,null,null,null,null,null,null,null,null,null,null,null,null,null,null,null,null,null,null,null,null,null,null,null,null,null,null,null,null,null,null,null,null,null,{"$f":"SUBTOTAL(3,$B$8:B51)","v":22},"  /    /    ",null,"  /   /    ",null,"  /   /    ",null,null,{"$f":"SUBTOTAL(3,$B$8:B51)","v":22},"عمار سمير ربىع دراز","1ـ3",null,null,null,null,null,null,null,null,null,null,null,null,null,null,null,null,null,null,null,null,null,"3/1"]
[{"$f":"SUBTOTAL(3,$B$8:B52)","v":22},"عمار محمد عثمان محمد عاجه","1ـ3",null,null,null,null,null,null,null,null,null,null,null,null,null,null,null,null,null,null,null,null,null,null,null,null,null,null,null,null,null,null,null,null,null,null,{"$f":"SUBTOTAL(3,$B$8:B52)","v":22},"  /    /    ",null,"  /   /    ",null,"  /   /    ",null,null,{"$f":"SUBTOTAL(3,$B$8:B52)","v":22},"عمار محمد عثمان محمد عاجه","1ـ3",null,null,null,null,null,null,null,null,null,null,null,null,null,null,null,null,null,null,null,null,null,"3/1"]
[{"$f":"SUBTOTAL(3,$B$8:B53)","v":22},"عمر محمد عبدالنبى ابراهيم","1ـ3",null,null,null,null,null,null,null,null,null,null,null,null,null,null,null,null,null,null,null,null,null,null,null,null,null,null,null,null,null,null,null,null,null,null,{"$f":"SUBTOTAL(3,$B$8:B53)","v":22},"  /    /    ",null,"  /   /    ",null,"  /   /    ",null,null,{"$f":"SUBTOTAL(3,$B$8:B53)","v":22},"عمر محمد عبدالنبى ابراهيم","1ـ3",null,null,null,null,null,null,null,null,null,null,null,null,null,null,null,null,null,null,null,null,null,"3/1"]
[{"$f":"SUBTOTAL(3,$B$8:B54)","v":22},"عمر محمد فوزى محمد","1ـ3",null,null,null,null,null,null,null,null,null,null,null,null,null,null,null,null,null,null,null,null,null,null,null,null,null,null,null,null,null,null,null,null,null,null,{"$f":"SUBTOTAL(3,$B$8:B54)","v":22},"  /    /    ",null,"  /   /    ",null,"  /   /    ",null,null,{"$f":"SUBTOTAL(3,$B$8:B54)","v":22},"عمر محمد فوزى محمد","1ـ3",null,null,null,null,null,null,null,null,null,null,null,null,null,null,null,null,null,null,null,null,null,"3/1"]
[{"$f":"SUBTOTAL(3,$B$8:B55)","v":22},"عمرو عبدالرؤف كسبان عبدالرؤف طعيمة","1ـ3",null,null,null,null,null,null,null,null,null,null,null,null,null,null,null,null,null,null,null,null,null,null,null,null,null,null,null,null,null,null,null,null,null,null,{"$f":"SUBTOTAL(3,$B$8:B55)","v":22},"  /    /    ",null,"  /   /    ",null,"  /   /    ",null,null,{"$f":"SUBTOTAL(3,$B$8:B55)","v":22},"عمرو عبدالرؤف كسبان عبدالرؤف طعيمة","1ـ3",null,null,null,null,null,null,null,null,null,null,null,null,null,null,null,null,null,null,null,null,null,"3/1"]
[{"$f":"SUBTOTAL(3,$B$8:B56)","v":22},"فتحى محمد احمد على سليمان","1ـ3",null,null,null,null,null,null,null,null,null,null,null,null,null,null,null,null,null,null,null,null,null,null,null,null,null,null,null,null,null,null,null,null,null,null,{"$f":"SUBTOTAL(3,$B$8:B56)","v":22},"  /    /    ",null,"  /   /    ",null,"  /   /    ",null,null,{"$f":"SUBTOTAL(3,$B$8:B56)","v":22},"فتحى محمد احمد على سليمان","1ـ3",null,null,null,null,null,null,null,null,null,null,null,null,null,null,null,null,null,null,null,null,null,"3/1"]
[{"$f":"SUBTOTAL(3,$B$8:B57)","v":22},"فهد عماد عبد الشكور الكردى","1ـ3",null,null,null,null,null,null,null,null,null,null,null,null,null,null,null,null,null,null,null,null,null,null,null,null,null,null,null,null,null,null,null,null,null,null,{"$f":"SUBTOTAL(3,$B$8:B57)","v":22},"  /    /    ",null,"  /   /    ",null,"  /   /    ",null,null,{"$f":"SUBTOTAL(3,$B$8:B57)","v":22},"فهد عماد عبد الشكور الكردى","1ـ3",null,null,null,null,null,null,null,null,null,null,null,null,null,null,null,null,null,null,null,null,null,"3/1"]
[{"$f":"SUBTOTAL(3,$B$8:B58)","v":22},"قدرى محمد قدرى يونس جمعه","1ـ3",null,null,null,null,null,null,null,null,null,null,null,null,null,null,null,null,null,null,null,null,null,null,null,null,null,null,null,null,null,null,null,null,null,null,{"$f":"SUBTOTAL(3,$B$8:B58)","v":22},"  /    /    ",null,"  /   /    ",null,"  /   /    ",null,null,{"$f":"SUBTOTAL(3,$B$8:B58)","v":22},"قدرى محمد قدرى يونس جمعه","1ـ3",null,null,null,null,null,null,null,null,null,null,null,null,null,null,null,null,null,null,null,null,null,"3/1"]
[{"$f":"SUBTOTAL(3,$B$8:B59)","v":22},"كريم احمد ياقوت حسن ابوسلامه","1ـ3",null,null,null,null,null,null,null,null,null,null,null,null,null,null,null,null,null,null,null,null,null,null,null,null,null,null,null,null,null,null,null,null,null,null,{"$f":"SUBTOTAL(3,$B$8:B59)","v":22},"  /    /    ",null,"  /   /    ",null,"  /   /    ",null,null,{"$f":"SUBTOTAL(3,$B$8:B59)","v":22},"كريم احمد ياقوت حسن ابوسلامه","1ـ3",null,null,null,null,null,null,null,null,null,null,null,null,null,null,null,null,null,null,null,null,null,"3/1"]
[{"$f":"SUBTOTAL(3,$B$8:B60)","v":22},"كريم السيد السيد عبدالمجيد ابو التجا","1ـ3",null,null,null,null,null,null,null,null,null,null,null,null,null,null,null,null,null,null,null,null,null,null,null,null,null,null,null,null,null,null,null,null,null,null,{"$f":"SUBTOTAL(3,$B$8:B60)","v":22},"  /    /    ",null,"  /   /    ",null,"  /   /    ",null,null,{"$f":"SUBTOTAL(3,$B$8:B60)","v":22},"كريم السيد السيد عبدالمجيد ابو التجا","1ـ3",null,null,null,null,null,null,null,null,null,null,null,null,null,null,null,null,null,null,null,null,null,"3/1"]
[{"$f":"SUBTOTAL(3,$B$8:B61)","v":22},"كريم محمد سعيد محمد الاعصر","1ـ3",null,null,null,null,null,null,null,null,null,null,null,null,null,null,null,null,null,null,null,null,null,null,null,null,null,null,null,null,null,null,null,null,null,null,{"$f":"SUBTOTAL(3,$B$8:B61)","v":22},"  /    /    ",null,"  /   /    ",null,"  /   /    ",null,null,{"$f":"SUBTOTAL(3,$B$8:B61)","v":22},"كريم محمد سعيد محمد الاعصر","1ـ3",null,null,null,null,null,null,null,null,null,null,null,null,null,null,null,null,null,null,null,null,null,"3/1"]
[{"$f":"SUBTOTAL(3,$B$8:B62)","v":22},"كريم هيثم السيد ابوالمجد","1ـ3",null,null,null,null,null,null,null,null,null,null,null,null,null,null,null,null,null,null,null,null,null,null,null,null,null,null,null,null,null,null,null,null,null,null,{"$f":"SUBTOTAL(3,$B$8:B62)","v":22},"  /    /    ",null,"  /   /    ",null,"  /   /    ",null,null,{"$f":"SUBTOTAL(3,$B$8:B62)","v":22},"كريم هيثم السيد ابوالمجد","1ـ3",null,null,null,null,null,null,null,null,null,null,null,null,null,null,null,null,null,null,null,null,null,"3/1"]
[{"$f":"SUBTOTAL(3,$B$8:B63)","v":22},"مازن عبده جلال درويش","1ـ3",null,null,null,null,null,null,null,null,null,null,null,null,null,null,null,null,null,null,null,null,null,null,null,null,null,null,null,null,null,null,null,null,null,null,{"$f":"SUBTOTAL(3,$B$8:B63)","v":22},"  /    /    ",null,"  /   /    ",null,"  /   /    ",null,null,{"$f":"SUBTOTAL(3,$B$8:B63)","v":22},"مازن عبده جلال درويش","1ـ3",null,null,null,null,null,null,null,null,null,null,null,null,null,null,null,null,null,null,null,null,null,"3/1"]
[{"$f":"SUBTOTAL(3,$B$8:B64)","v":22},"مازن عماد حمدى عبدالصمد","1ـ3",null,null,null,null,null,null,null,null,null,null,null,null,null,null,null,null,null,null,null,null,null,null,null,null,null,null,null,null,null,null,null,null,null,null,{"$f":"SUBTOTAL(3,$B$8:B64)","v":22},"  /    /    ",null,"  /   /    ",null,"  /   /    ",null,null,{"$f":"SUBTOTAL(3,$B$8:B64)","v":22},"مازن عماد حمدى عبدالصمد","1ـ3",null,null,null,null,null,null,null,null,null,null,null,null,null,null,null,null,null,null,null,null,null,"3/1"]
[{"$f":"SUBTOTAL(3,$B$8:B65)","v":22},"مالك احمد عطيه منشاوى","1ـ3",null,null,null,null,null,null,null,null,null,null,null,null,null,null,null,null,null,null,null,null,null,null,null,null,null,null,null,null,null,null,null,null,null,null,{"$f":"SUBTOTAL(3,$B$8:B65)","v":22},"  /    /    ",null,"  /   /    ",null,"  /   /    ",null,null,{"$f":"SUBTOTAL(3,$B$8:B65)","v":22},"مالك احمد عطيه منشاوى","1ـ3",null,null,null,null,null,null,null,null,null,null,null,null,null,null,null,null,null,null,null,null,null,"3/1"]
[{"$f":"SUBTOTAL(3,$B$8:B66)","v":22},"مالك محمد شمس الدين محمد","1ـ3",null,null,null,null,null,null,null,null,null,null,null,null,null,null,null,null,null,null,null,null,null,null,null,null,null,null,null,null,null,null,null,null,null,null,{"$f":"SUBTOTAL(3,$B$8:B66)","v":22},"  /    /    ",null,"  /   /    ",null,"  /   /    ",null,null,{"$f":"SUBTOTAL(3,$B$8:B66)","v":22},"مالك محمد شمس الدين محمد","1ـ3",null,null,null,null,null,null,null,null,null,null,null,null,null,null,null,null,null,null,null,null,null,"3/1"]
[{"$f":"SUBTOTAL(3,$B$8:B67)","v":22},"محمد ابراهيم محمد على محمود","1ـ3",null,null,null,null,null,null,null,null,null,null,null,null,null,null,null,null,null,null,null,null,null,null,null,null,null,null,null,null,null,null,null,null,null,null,{"$f":"SUBTOTAL(3,$B$8:B67)","v":22},"  /    /    ",null,"  /   /    ",null,"  /   /    ",null,null,{"$f":"SUBTOTAL(3,$B$8:B67)","v":22},"محمد ابراهيم محمد على محمود","1ـ3",null,null,null,null,null,null,null,null,null,null,null,null,null,null,null,null,null,null,null,null,null,"3/1"]
[{"$f":"SUBTOTAL(3,$B$8:B68)","v":22},"محمد احمد رافت قمر الدوله","1ـ3",null,null,null,null,null,null,null,null,null,null,null,null,null,null,null,null,null,null,null,null,null,null,null,null,null,null,null,null,null,null,null,null,null,null,{"$f":"SUBTOTAL(3,$B$8:B68)","v":22},"  /    /    ",null,"  /   /    ",null,"  /   /    ",null,null,{"$f":"SUBTOTAL(3,$B$8:B68)","v":22},"محمد احمد رافت قمر الدوله","1ـ3",null,null,null,null,null,null,null,null,null,null,null,null,null,null,null,null,null,null,null,null,null,"3/1"]
[{"$f":"SUBTOTAL(3,$B$8:B69)","v":22},"محمد احمد عادل محمد الجعار","1ـ3",null,null,null,null,null,null,null,null,null,null,null,null,null,null,null,null,null,null,null,null,null,null,null,null,null,null,null,null,null,null,null,null,null,null,{"$f":"SUBTOTAL(3,$B$8:B69)","v":22},"  /    /    ",null,"  /   /    ",null,"  /   /    ",null,null,{"$f":"SUBTOTAL(3,$B$8:B69)","v":22},"محمد احمد عادل محمد الجعار","1ـ3",null,null,null,null,null,null,null,null,null,null,null,null,null,null,null,null,null,null,null,null,null,"3/1"]
[{"$f":"SUBTOTAL(3,$B$8:B70)","v":22},"محمد احمد عبدالخالق عبدالله هرول","1ـ3",null,null,null,null,null,null,null,null,null,null,null,null,null,null,null,null,null,null,null,null,null,null,null,null,null,null,null,null,null,null,null,null,null,null,{"$f":"SUBTOTAL(3,$B$8:B70)","v":22},"  /    /    ",null,"  /   /    ",null,"  /   /    ",null,null,{"$f":"SUBTOTAL(3,$B$8:B70)","v":22},"محمد احمد عبدالخالق عبدالله هرول","1ـ3",null,null,null,null,null,null,null,null,null,null,null,null,null,null,null,null,null,null,null,null,null,"3/1"]
[{"$f":"SUBTOTAL(3,$B$8:B71)","v":22},"محمد ايهاب محمد عبدالفتاح البهلوان","1ـ4",null,null,null,null,null,null,null,null,null,null,null,null,null,null,null,null,null,null,null,null,null,null,null,null,null,null,null,null,null,null,null,null,null,null,{"$f":"SUBTOTAL(3,$B$8:B71)","v":22},"  /    /    ",null,"  /   /    ",null,"  /   /    ",null,null,{"$f":"SUBTOTAL(3,$B$8:B71)","v":22},"محمد ايهاب محمد عبدالفتاح البهلوان","1ـ4",null,null,null,null,null,null,null,null,null,null,null,null,null,null,null,null,null,null,null,null,null,"4/1"]
[{"$f":"SUBTOTAL(3,$B$8:B72)","v":22},"محمد تامر محمد عبده ابوسنه","1ـ4",null,null,null,null,null,null,null,null,null,null,null,null,null,null,null,null,null,null,null,null,null,null,null,null,null,null,null,null,null,null,null,null,null,null,{"$f":"SUBTOTAL(3,$B$8:B72)","v":22},"  /    /    ",null,"  /   /    ",null,"  /   /    ",null,null,{"$f":"SUBTOTAL(3,$B$8:B72)","v":22},"محمد تامر محمد عبده ابوسنه","1ـ4",null,null,null,null,null,null,null,null,null,null,null,null,null,null,null,null,null,null,null,null,null,"4/1"]
[{"$f":"SUBTOTAL(3,$B$8:B73)","v":22},"محمد حسن محمد حسن عبدالدايم","1ـ4",null,null,null,null,null,null,null,null,null,null,null,null,null,null,null,null,null,null,null,null,null,null,null,null,null,null,null,null,null,null,null,null,null,null,{"$f":"SUBTOTAL(3,$B$8:B73)","v":22},"  /    /    ",null,"  /   /    ",null,"  /   /    ",null,null,{"$f":"SUBTOTAL(3,$B$8:B73)","v":22},{"$f":"B73","v":"محمد حسن محمد حسن عبدالدايم"},{"$f":"C73","v":"1ـ4"},null,null,null,null,null,null,null,null,null,null,null,null,null,null,null,null,null,null,null,null,null,"4/1"]
[{"$f":"SUBTOTAL(3,$B$8:B74)","v":22},"محمد رشاد صابر القبلاوى","1ـ4",null,null,null,null,null,null,null,null,null,null,null,null,null,null,null,null,null,null,null,null,null,null,null,null,null,null,null,null,null,null,null,null,null,null,{"$f":"SUBTOTAL(3,$B$8:B74)","v":22},"  /    /    ",null,"  /   /    ",null,"  /   /    ",null,null,{"$f":"SUBTOTAL(3,$B$8:B74)","v":22},"محمد رشاد صابر القبلاوى","1ـ4",null,null,null,null,null,null,null,null,null,null,null,null,null,null,null,null,null,null,null,null,null,"4/1"]
[{"$f":"SUBTOTAL(3,$B$8:B75)","v":22},"محمد صلاح عبدالوهاب محمد الخطيب","1ـ4",null,null,null,null,null,null,null,null,null,null,null,null,null,null,null,null,null,null,null,null,null,null,null,null,null,null,null,null,null,null,null,null,null,null,{"$f":"SUBTOTAL(3,$B$8:B75)","v":22},"  /    /    ",null,"  /   /    ",null,"  /   /    ",null,null,{"$f":"SUBTOTAL(3,$B$8:B75)","v":22},"محمد صلاح عبدالوهاب محمد الخطيب","1ـ4",null,null,null,null,null,null,null,null,null,null,null,null,null,null,null,null,null,null,null,null,null,"4/1"]
[{"$f":"SUBTOTAL(3,$B$8:B76)","v":22},"محمد عبدالتواب محمد عبدالتواب الفقيرى","1ـ4",null,null,null,null,null,null,null,null,null,null,null,null,null,null,null,null,null,null,null,null,null,null,null,null,null,null,null,null,null,null,null,null,null,null,{"$f":"SUBTOTAL(3,$B$8:B76)","v":22},"  /    /    ",null,"  /   /    ",null,"  /   /    ",null,null,{"$f":"SUBTOTAL(3,$B$8:B76)","v":22},"محمد عبدالتواب محمد عبدالتواب الفقيرى","1ـ4",null,null,null,null,null,null,null,null,null,null,null,null,null,null,null,null,null,null,null,null,null,"4/1"]
[{"$f":"SUBTOTAL(3,$B$8:B77)","v":22},"محمد عبدالناصر محمد ابراهيم الشهاوى","1ـ4",null,null,null,null,null,null,null,null,null,null,null,null,null,null,null,null,null,null,null,null,null,null,null,null,null,null,null,null,null,null,null,null,null,null,{"$f":"SUBTOTAL(3,$B$8:B77)","v":22},"  /    /    ",null,"  /   /    ",null,"  /   /    ",null,null,{"$f":"SUBTOTAL(3,$B$8:B77)","v":22},"محمد عبدالناصر محمد ابراهيم الشهاوى","1ـ4",null,null,null,null,null,null,null,null,null,null,null,null,null,null,null,null,null,null,null,null,null,"4/1"]
[{"$f":"SUBTOTAL(3,$B$8:B78)","v":22},"محمد عبدالنبى فوزى رشدى","1ـ4",null,null,null,null,null,null,null,null,null,null,null,null,null,null,null,null,null,null,null,null,null,null,null,null,null,null,null,null,null,null,null,null,null,null,{"$f":"SUBTOTAL(3,$B$8:B78)","v":22},"  /    /    ",null,"  /   /    ",null,"  /   /    ",null,null,{"$f":"SUBTOTAL(3,$B$8:B78)","v":22},"محمد عبدالنبى فوزى رشدى","1ـ4",null,null,null,null,null,null,null,null,null,null,null,null,null,null,null,null,null,null,null,null,null,"4/1"]
[{"$f":"SUBTOTAL(3,$B$8:B79)","v":22},"محمد عبدالهادى عبدالخالق محمد زيدان","1ـ4",null,null,null,null,null,null,null,null,null,null,null,null,null,null,null,null,null,null,null,null,null,null,null,null,null,null,null,null,null,null,null,null,null,null,{"$f":"SUBTOTAL(3,$B$8:B79)","v":22},"  /    /    ",null,"  /   /    ",null,"  /   /    ",null,null,{"$f":"SUBTOTAL(3,$B$8:B79)","v":22},"محمد عبدالهادى عبدالخالق محمد زيدان","1ـ4",null,null,null,null,null,null,null,null,null,null,null,null,null,null,null,null,null,null,null,null,null,"4/1"]
[{"$f":"SUBTOTAL(3,$B$8:B80)","v":22},"محمد عزت انور السيد عوده","1ـ4",null,null,null,null,null,null,null,null,null,null,null,null,null,null,null,null,null,null,null,null,null,null,null,null,null,null,null,null,null,null,null,null,null,null,{"$f":"SUBTOTAL(3,$B$8:B80)","v":22},"  /    /    ",null,"  /   /    ",null,"  /   /    ",null,null,{"$f":"SUBTOTAL(3,$B$8:B80)","v":22},"محمد عزت انور السيد عوده","1ـ4",null,null,null,null,null,null,null,null,null,null,null,null,null,null,null,null,null,null,null,null,null,"4/1"]
[{"$f":"SUBTOTAL(3,$B$8:B81)","v":22},"محمد على عيد محمود ابوسلامه","1ـ4",null,null,null,null,null,null,null,null,null,null,null,null,null,null,null,null,null,null,null,null,null,null,null,null,null,null,null,null,null,null,null,null,null,null,{"$f":"SUBTOTAL(3,$B$8:B81)","v":22},"  /    /    ",null,"  /   /    ",null,"  /   /    ",null,null,{"$f":"SUBTOTAL(3,$B$8:B81)","v":22},"محمد على عيد محمود ابوسلامه","1ـ4",null,null,null,null,null,null,null,null,null,null,null,null,null,null,null,null,null,null,null,null,null,"4/1"]
[{"$f":"SUBTOTAL(3,$B$8:B82)","v":22},"محمد على محمد على الخطيب","1ـ4",null,null,null,null,null,null,null,null,null,null,null,null,null,null,null,null,null,null,null,null,null,null,null,null,null,null,null,null,null,null,null,null,null,null,{"$f":"SUBTOTAL(3,$B$8:B82)","v":22},"  /    /    ",null,"  /   /    ",null,"  /   /    ",null,null,{"$f":"SUBTOTAL(3,$B$8:B82)","v":22},"محمد على محمد على الخطيب","1ـ4",null,null,null,null,null,null,null,null,null,null,null,null,null,null,null,null,null,null,null,null,null,"4/1"]
[{"$f":"SUBTOTAL(3,$B$8:B83)","v":22},"محمد عماد حسن شحاته","1ـ4",null,null,null,null,null,null,null,null,null,null,null,null,null,null,null,null,null,null,null,null,null,null,null,null,null,null,null,null,null,null,null,null,null,null,{"$f":"SUBTOTAL(3,$B$8:B83)","v":22},"  /    /    ",null,"  /   /    ",null,"  /   /    ",null,null,{"$f":"SUBTOTAL(3,$B$8:B83)","v":22},"محمد عماد حسن شحاته","1ـ4",null,null,null,null,null,null,null,null,null,null,null,null,null,null,null,null,null,null,null,null,null,"4/1"]
[{"$f":"SUBTOTAL(3,$B$8:B84)","v":22},"محمد قاسم محمد قاسم","1ـ4",null,null,null,null,null,null,null,null,null,null,null,null,null,null,null,null,null,null,null,null,null,null,null,null,null,null,null,null,null,null,null,null,null,null,{"$f":"SUBTOTAL(3,$B$8:B84)","v":22},"  /    /    ",null,"  /   /    ",null,"  /   /    ",null,null,{"$f":"SUBTOTAL(3,$B$8:B84)","v":22},"محمد قاسم محمد قاسم","1ـ4",null,null,null,null,null,null,null,null,null,null,null,null,null,null,null,null,null,null,null,null,null,"4/1"]
[{"$f":"SUBTOTAL(3,$B$8:B85)","v":22},"محمد محمود فكرى احمد محمد","1ـ4",null,null,null,null,null,null,null,null,null,null,null,null,null,null,null,null,null,null,null,null,null,null,null,null,null,null,null,null,null,null,null,null,null,null,{"$f":"SUBTOTAL(3,$B$8:B85)","v":22},"  /    /    ",null,"  /   /    ",null,"  /   /    ",null,null,{"$f":"SUBTOTAL(3,$B$8:B85)","v":22},"محمد محمود فكرى احمد محمد","1ـ4",null,null,null,null,null,null,null,null,null,null,null,null,null,null,null,null,null,null,null,null,null,"4/1"]
[{"$f":"SUBTOTAL(3,$B$8:B86)","v":22},"محمد مصطفى طه محمود ابراهيم مراد","1ـ4",null,null,null,null,null,null,null,null,null,null,null,null,null,null,null,null,null,null,null,null,null,null,null,null,null,null,null,null,null,null,null,null,null,null,{"$f":"SUBTOTAL(3,$B$8:B86)","v":22},"  /    /    ",null,"  /   /    ",null,"  /   /    ",null,null,{"$f":"SUBTOTAL(3,$B$8:B86)","v":22},"محمد مصطفى طه محمود ابراهيم مراد","1ـ4",null,null,null,null,null,null,null,null,null,null,null,null,null,null,null,null,null,null,null,null,null,"4/1"]
[{"$f":"SUBTOTAL(3,$B$8:B87)","v":22},"محمد هلال السيد قطب","1ـ4",null,null,null,null,null,null,null,null,null,null,null,null,null,null,null,null,null,null,null,null,null,null,null,null,null,null,null,null,null,null,null,null,null,null,{"$f":"SUBTOTAL(3,$B$8:B87)","v":22},"  /    /    ",null,"  /   /    ",null,"  /   /    ",null,null,{"$f":"SUBTOTAL(3,$B$8:B87)","v":22},"محمد هلال السيد قطب","1ـ4",null,null,null,null,null,null,null,null,null,null,null,null,null,null,null,null,null,null,null,null,null,"4/1"]
[{"$f":"SUBTOTAL(3,$B$8:B88)","v":22},"محمد وليد رجب الصفتى","1ـ4",null,null,null,null,null,null,null,null,null,null,null,null,null,null,null,null,null,null,null,null,null,null,null,null,null,null,null,null,null,null,null,null,null,null,{"$f":"SUBTOTAL(3,$B$8:B88)","v":22},"  /    /    ",null,"  /   /    ",null,"  /   /    ",null,null,{"$f":"SUBTOTAL(3,$B$8:B88)","v":22},"محمد وليد رجب الصفتى","1ـ4",null,null,null,null,null,null,null,null,null,null,null,null,null,null,null,null,null,null,null,null,null,"4/1"]
[{"$f":"SUBTOTAL(3,$B$8:B89)","v":22},"محمود احمد محمود محمود","1ـ4",null,null,null,null,null,null,null,null,null,null,null,null,null,null,null,null,null,null,null,null,null,null,null,null,null,null,null,null,null,null,null,null,null,null,{"$f":"SUBTOTAL(3,$B$8:B89)","v":22},"  /    /    ",null,"  /   /    ",null,"  /   /    ",null,null,{"$f":"SUBTOTAL(3,$B$8:B89)","v":22},"محمود احمد محمود محمود","1ـ4",null,null,null,null,null,null,null,null,null,null,null,null,null,null,null,null,null,null,null,null,null,"4/1"]
[{"$f":"SUBTOTAL(3,$B$8:B90)","v":22},"مصطفى رجب رشاد اسماعيل الجوهرى","1ـ4",null,null,null,null,null,null,null,null,null,null,null,null,null,null,null,null,null,null,null,null,null,null,null,null,null,null,null,null,null,null,null,null,null,null,{"$f":"SUBTOTAL(3,$B$8:B90)","v":22},"  /    /    ",null,"  /   /    ",null,"  /   /    ",null,null,{"$f":"SUBTOTAL(3,$B$8:B90)","v":22},"مصطفى رجب رشاد اسماعيل الجوهرى","1ـ4",null,null,null,null,null,null,null,null,null,null,null,null,null,null,null,null,null,null,null,null,null,"4/1"]
[{"$f":"SUBTOTAL(3,$B$8:B91)","v":22},"مصطفى سمير القطب الشوبرى","1ـ5",null,null,null,null,null,null,null,null,null,null,null,null,null,null,null,null,null,null,null,null,null,null,null,null,null,null,null,null,null,null,null,null,null,null,{"$f":"SUBTOTAL(3,$B$8:B91)","v":22},"  /    /    ",null,"  /   /    ",null,"  /   /    ",null,null,{"$f":"SUBTOTAL(3,$B$8:B91)","v":22},"مصطفى سمير القطب الشوبرى","1ـ5",null,null,null,null,null,null,null,null,null,null,null,null,null,null,null,null,null,null,null,null,null,"4/1"]
[{"$f":"SUBTOTAL(3,$B$8:B92)","v":22},"مصطفى عادل محمد محمد الجعار","1ـ5",null,null,null,null,null,null,null,null,null,null,null,null,null,null,null,null,null,null,null,null,null,null,null,null,null,null,null,null,null,null,null,null,null,null,{"$f":"SUBTOTAL(3,$B$8:B92)","v":22},"  /    /    ",null,"  /   /    ",null,"  /   /    ",null,null,{"$f":"SUBTOTAL(3,$B$8:B92)","v":22},"مصطفى عادل محمد محمد الجعار","1ـ5",null,null,null,null,null,null,null,null,null,null,null,null,null,null,null,null,null,null,null,null,null,"4/1"]
[{"$f":"SUBTOTAL(3,$B$8:B93)","v":22},"مصطفى عبدالنبى فوزى رشدى","1ـ4",null,null,null,null,null,null,null,null,null,null,null,null,null,null,null,null,null,null,null,null,null,null,null,null,null,null,null,null,null,null,null,null,null,null,{"$f":"SUBTOTAL(3,$B$8:B93)","v":22},"  /    /    ",null,"  /   /    ",null,"  /   /    ",null,null,{"$f":"SUBTOTAL(3,$B$8:B93)","v":22},"مصطفى عبدالنبى فوزى رشدى","1ـ4",null,null,null,null,null,null,null,null,null,null,null,null,null,null,null,null,null,null,null,null,null,"4/1"]
[{"$f":"SUBTOTAL(3,$B$8:B94)","v":22},"مصطفى محمد محمود مصطفى","1ـ5",null,null,null,null,null,null,null,null,null,null,null,null,null,null,null,null,null,null,null,null,null,null,null,null,null,null,null,null,null,null,null,null,null,null,{"$f":"SUBTOTAL(3,$B$8:B94)","v":22},"  /    /    ",null,"  /   /    ",null,"  /   /    ",null,null,{"$f":"SUBTOTAL(3,$B$8:B94)","v":22},"مصطفى محمد محمود مصطفى","1ـ5",null,null,null,null,null,null,null,null,null,null,null,null,null,null,null,null,null,null,null,null,null,"5/1"]
[{"$f":"SUBTOTAL(3,$B$8:B95)","v":22},"مصطفى هشام صلاح محمد","1ـ5",null,null,null,null,null,null,null,null,null,null,null,null,null,null,null,null,null,null,null,null,null,null,null,null,null,null,null,null,null,null,null,null,null,null,{"$f":"SUBTOTAL(3,$B$8:B95)","v":22},"  /    /    ",null,"  /   /    ",null,"  /   /    ",null,null,{"$f":"SUBTOTAL(3,$B$8:B95)","v":22},"مصطفى هشام صلاح محمد","1ـ5",null,null,null,null,null,null,null,null,null,null,null,null,null,null,null,null,null,null,null,null,null,"5/1"]
[{"$f":"SUBTOTAL(3,$B$8:B96)","v":22},"معاذ ايمن مرسى امبابى عطيه","1ـ5",null,null,null,null,null,null,null,null,null,null,null,null,null,null,null,null,null,null,null,null,null,null,null,null,null,null,null,null,null,null,null,null,null,null,{"$f":"SUBTOTAL(3,$B$8:B96)","v":22},"  /    /    ",null,"  /   /    ",null,"  /   /    ",null,null,{"$f":"SUBTOTAL(3,$B$8:B96)","v":22},"معاذ ايمن مرسى امبابى عطيه","1ـ5",null,null,null,null,null,null,null,null,null,null,null,null,null,null,null,null,null,null,null,null,null,"5/1"]
[{"$f":"SUBTOTAL(3,$B$8:B97)","v":22},"مهند حازم جمال ابراهيم الدكماوى","1ـ5",null,null,null,null,null,null,null,null,null,null,null,null,null,null,null,null,null,null,null,null,null,null,null,null,null,null,null,null,null,null,null,null,null,null,{"$f":"SUBTOTAL(3,$B$8:B97)","v":22},"  /    /    ",null,"  /   /    ",null,"  /   /    ",null,null,{"$f":"SUBTOTAL(3,$B$8:B97)","v":22},"مهند حازم جمال ابراهيم الدكماوى","1ـ5",null,null,null,null,null,null,null,null,null,null,null,null,null,null,null,null,null,null,null,null,null,"5/1"]
[{"$f":"SUBTOTAL(3,$B$8:B98)","v":22},"نبيل علاء نبيل عبدالغنى عطيوى","1ـ5",null,null,null,null,null,null,null,null,null,null,null,null,null,null,null,null,null,null,null,null,null,null,null,null,null,null,null,null,null,null,null,null,null,null,{"$f":"SUBTOTAL(3,$B$8:B98)","v":22},"  /    /    ",null,"  /   /    ",null,"  /   /    ",null,null,{"$f":"SUBTOTAL(3,$B$8:B98)","v":22},"نبيل علاء نبيل عبدالغنى عطيوى","1ـ5",null,null,null,null,null,null,null,null,null,null,null,null,null,null,null,null,null,null,null,null,null,"5/1"]
[{"$f":"SUBTOTAL(3,$B$8:B99)","v":22},"ياسين احمد عبد النبى ابراهيم دره","1ـ5",null,null,null,null,null,null,null,null,null,null,null,null,null,null,null,null,null,null,null,null,null,null,null,null,null,null,null,null,null,null,null,null,null,null,{"$f":"SUBTOTAL(3,$B$8:B99)","v":22},"  /    /    ",null,"  /   /    ",null,"  /   /    ",null,null,{"$f":"SUBTOTAL(3,$B$8:B99)","v":22},"ياسين احمد عبد النبى ابراهيم دره","1ـ5",null,null,null,null,null,null,null,null,null,null,null,null,null,null,null,null,null,null,null,null,null,"5/1"]
[{"$f":"SUBTOTAL(3,$B$8:B100)","v":22},"ياسين ايمن طه محمد زيدان","1ـ5",null,null,null,null,null,null,null,null,null,null,null,null,null,null,null,null,null,null,null,null,null,null,null,null,null,null,null,null,null,null,null,null,null,null,{"$f":"SUBTOTAL(3,$B$8:B100)","v":22},"  /    /    ",null,"  /   /    ",null,"  /   /    ",null,null,{"$f":"SUBTOTAL(3,$B$8:B100)","v":22},"ياسين ايمن طه محمد زيدان","1ـ5",null,null,null,null,null,null,null,null,null,null,null,null,null,null,null,null,null,null,null,null,null,"5/1"]
[{"$f":"SUBTOTAL(3,$B$8:B101)","v":22},"ياسين حسام محمد نبيه الرفاعى السيد","1ـ5",null,null,null,null,null,null,null,null,null,null,null,null,null,null,null,null,null,null,null,null,null,null,null,null,null,null,null,null,null,null,null,null,null,null,{"$f":"SUBTOTAL(3,$B$8:B101)","v":22},"  /    /    ",null,"  /   /    ",null,"  /   /    ",null,null,{"$f":"SUBTOTAL(3,$B$8:B101)","v":22},"ياسين حسام محمد نبيه الرفاعى السيد","1ـ5",null,null,null,null,null,null,null,null,null,null,null,null,null,null,null,null,null,null,null,null,null,"5/1"]
[{"$f":"SUBTOTAL(3,$B$8:B102)","v":22},"ياسين محمد ابراهيم السيد عبدالهادى","1ـ2",null,null,null,null,null,null,null,null,null,null,null,null,null,null,null,null,null,null,null,null,null,null,null,null,null,null,null,null,null,null,null,null,null,null,{"$f":"SUBTOTAL(3,$B$8:B102)","v":22},"  /    /    ",null,"  /   /    ",null,"  /   /    ",null,null,{"$f":"SUBTOTAL(3,$B$8:B102)","v":22},"ياسين محمد ابراهيم السيد عبدالهادى","1ـ2",null,null,null,null,null,null,null,null,null,null,null,null,null,null,null,null,null,null,null,null,null,"5/1"]
[{"$f":"SUBTOTAL(3,$B$8:B103)","v":22},"ياسين محمد جمال محمد سالم","1ـ5",null,null,null,null,null,null,null,null,null,null,null,null,null,null,null,null,null,null,null,null,null,null,null,null,null,null,null,null,null,null,null,null,null,null,{"$f":"SUBTOTAL(3,$B$8:B103)","v":22},"  /    /    ",null,"  /   /    ",null,"  /   /    ",null,null,{"$f":"SUBTOTAL(3,$B$8:B103)","v":22},"ياسين محمد جمال محمد سالم","1ـ5",null,null,null,null,null,null,null,null,null,null,null,null,null,null,null,null,null,null,null,null,null,"5/1"]
[{"$f":"SUBTOTAL(3,$B$8:B104)","v":22},"ياسين وليد السيد عبدالمصود ابوحمد","1ـ5",null,null,null,null,null,null,null,null,null,null,null,null,null,null,null,null,null,null,null,null,null,null,null,null,null,null,null,null,null,null,null,null,null,null,{"$f":"SUBTOTAL(3,$B$8:B104)","v":22},"  /    /    ",null,"  /   /    ",null,"  /   /    ",null,null,{"$f":"SUBTOTAL(3,$B$8:B104)","v":22},"ياسين وليد السيد عبدالمصود ابوحمد","1ـ5",null,null,null,null,null,null,null,null,null,null,null,null,null,null,null,null,null,null,null,null,null,"5/1"]
[{"$f":"SUBTOTAL(3,$B$8:B105)","v":22},"يس محمد اسماعيل مخلوف","1ـ5",null,null,null,null,null,null,null,null,null,null,null,null,null,null,null,null,null,null,null,null,null,null,null,null,null,null,null,null,null,null,null,null,null,null,{"$f":"SUBTOTAL(3,$B$8:B105)","v":22},"  /    /    ",null,"  /   /    ",null,"  /   /    ",null,null,{"$f":"SUBTOTAL(3,$B$8:B105)","v":22},"يس محمد اسماعيل مخلوف","1ـ5",null,null,null,null,null,null,null,null,null,null,null,null,null,null,null,null,null,null,null,null,null,"5/1"]
[{"$f":"SUBTOTAL(3,$B$8:B106)","v":22},"يس محمود فكرى احمد محمد","1ـ5",null,null,null,null,null,null,null,null,null,null,null,null,null,null,null,null,null,null,null,null,null,null,null,null,null,null,null,null,null,null,null,null,null,null,{"$f":"SUBTOTAL(3,$B$8:B106)","v":22},"  /    /    ",null,"  /   /    ",null,"  /   /    ",null,null,{"$f":"SUBTOTAL(3,$B$8:B106)","v":22},"يس محمود فكرى احمد محمد","1ـ5",null,null,null,null,null,null,null,null,null,null,null,null,null,null,null,null,null,null,null,null,null,"5/1"]
[{"$f":"SUBTOTAL(3,$B$8:B107)","v":22},"يوسف ابراهيم صبرى محمود","1ـ5",null,null,null,null,null,null,null,null,null,null,null,null,null,null,null,null,null,null,null,null,null,null,null,null,null,null,null,null,null,null,null,null,null,null,{"$f":"SUBTOTAL(3,$B$8:B107)","v":22},"  /    /    ",null,"  /   /    ",null,"  /   /    ",null,null,{"$f":"SUBTOTAL(3,$B$8:B107)","v":22},"يوسف ابراهيم صبرى محمود","1ـ5",null,null,null,null,null,null,null,null,null,null,null,null,null,null,null,null,null,null,null,null,null,"5/1"]
[{"$f":"SUBTOTAL(3,$B$8:B108)","v":22},"يوسف اسامه ناجى رشاد","1ـ5",null,null,null,null,null,null,null,null,null,null,null,null,null,null,null,null,null,null,null,null,null,null,null,null,null,null,null,null,null,null,null,null,null,null,{"$f":"SUBTOTAL(3,$B$8:B108)","v":22},"  /    /    ",null,"  /   /    ",null,"  /   /    ",null,null,{"$f":"SUBTOTAL(3,$B$8:B108)","v":22},"يوسف اسامه ناجى رشاد","1ـ5",null,null,null,null,null,null,null,null,null,null,null,null,null,null,null,null,null,null,null,null,null,"5/1"]
[{"$f":"SUBTOTAL(3,$B$8:B109)","v":22},"يوسف محمد السيد الشيخ","1ـ5",null,null,null,null,null,null,null,null,null,null,null,null,null,null,null,null,null,null,null,null,null,null,null,null,null,null,null,null,null,null,null,null,null,null,{"$f":"SUBTOTAL(3,$B$8:B109)","v":22},"  /    /    ",null,"  /   /    ",null,"  /   /    ",null,null,{"$f":"SUBTOTAL(3,$B$8:B109)","v":22},"يوسف محمد السيد الشيخ","1ـ5",null,null,null,null,null,null,null,null,null,null,null,null,null,null,null,null,null,null,null,null,null,"5/1"]
[{"$f":"SUBTOTAL(3,$B$8:B110)","v":22},"يوسف محمد حسن حسن","1ـ5",null,null,null,null,null,null,null,null,null,null,null,null,null,null,null,null,null,null,null,null,null,null,null,null,null,null,null,null,null,null,null,null,null,null,{"$f":"SUBTOTAL(3,$B$8:B110)","v":22},"  /    /    ",null,"  /   /    ",null,"  /   /    ",null,null,{"$f":"SUBTOTAL(3,$B$8:B110)","v":22},"يوسف محمد حسن حسن","1ـ5",null,null,null,null,null,null,null,null,null,null,null,null,null,null,null,null,null,null,null,null,null,"5/1"]
[{"$f":"SUBTOTAL(3,$B$8:B111)","v":22},"يوسف محمد ربىع عبدالغفار","1ـ5",null,null,null,null,null,null,null,null,null,null,null,null,null,null,null,null,null,null,null,null,null,null,null,null,null,null,null,null,null,null,null,null,null,null,{"$f":"SUBTOTAL(3,$B$8:B111)","v":22},"  /    /    ",null,"  /   /    ",null,"  /   /    ",null,null,{"$f":"SUBTOTAL(3,$B$8:B111)","v":22},"يوسف محمد ربىع عبدالغفار","1ـ5",null,null,null,null,null,null,null,null,null,null,null,null,null,null,null,null,null,null,null,null,null,"5/1"]
[{"$f":"SUBTOTAL(3,$B$8:B112)","v":22},"يوسف محمد على طه ريان","1ـ5",null,null,null,null,null,null,null,null,null,null,null,null,null,null,null,null,null,null,null,null,null,null,null,null,null,null,null,null,null,null,null,null,null,null,{"$f":"SUBTOTAL(3,$B$8:B112)","v":22},"  /    /    ",null,"  /   /    ",null,"  /   /    ",null,null,{"$f":"SUBTOTAL(3,$B$8:B112)","v":22},"يوسف محمد على طه ريان","1ـ5",null,null,null,null,null,null,null,null,null,null,null,null,null,null,null,null,null,null,null,null,null,"5/1"]
[{"$f":"SUBTOTAL(3,$B$8:B113)","v":22},"يوسف هانى حسام الدين مصطفى","1ـ5",null,null,null,null,null,null,null,null,null,null,null,null,null,null,null,null,null,null,null,null,null,null,null,null,null,null,null,null,null,null,null,null,null,null,{"$f":"SUBTOTAL(3,$B$8:B113)","v":22},"  /    /    ",null,"  /   /    ",null,"  /   /    ",null,null,{"$f":"SUBTOTAL(3,$B$8:B113)","v":22},"يوسف هانى حسام الدين مصطفى","1ـ5",null,null,null,null,null,null,null,null,null,null,null,null,null,null,null,null,null,null,null,null,null,"5/1"]
[{"$f":"SUBTOTAL(3,$B$8:B114)","v":22},"يونس محمد عثمان يونس عيسى","1ـ2",null,null,null,null,null,null,null,null,null,null,null,null,null,null,null,null,null,null,null,null,null,null,null,null,null,null,null,null,null,null,null,null,null,null,{"$f":"SUBTOTAL(3,$B$8:B114)","v":22},"  /    /    ",null,"  /   /    ",null,"  /   /    ",null,null,{"$f":"SUBTOTAL(3,$B$8:B114)","v":22},"يونس محمد عثمان يونس عيسى","1ـ2",null,null,null,null,null,null,null,null,null,null,null,null,null,null,null,null,null,null,null,null,null,"2/1"]
[{"$f":"SUBTOTAL(3,$B$8:B115)","v":23},"اسيل محمد عبدالجواد محمد العليمى","1ـ1",null,null,null,null,null,null,null,null,null,null,null,null,null,null,null,null,null,null,null,null,null,null,null,null,null,null,null,null,null,null,null,null,null,null,{"$f":"SUBTOTAL(3,$B$8:B115)","v":23},"  /    /    ",null,"  /   /    ",null,"  /   /    ",null,null,{"$f":"SUBTOTAL(3,$B$8:B115)","v":23},"اسيل محمد عبدالجواد محمد العليمى","1ـ1",null,null,null,null,null,null,null,null,null,null,null,null,null,null,null,null,null,null,null,null,null,"1/1"]
[{"$f":"SUBTOTAL(3,$B$8:B116)","v":24},"اسيل وائل سعد محمد عبدالدايم","1ـ1",null,null,null,null,null,null,null,null,null,null,null,null,null,null,null,null,null,null,null,null,null,null,null,null,null,null,null,null,null,null,null,null,null,null,{"$f":"SUBTOTAL(3,$B$8:B116)","v":24},"  /    /    ",null,"  /   /    ",null,"  /   /    ",null,null,{"$f":"SUBTOTAL(3,$B$8:B116)","v":24},"اسيل وائل سعد محمد عبدالدايم","1ـ1",null,null,null,null,null,null,null,null,null,null,null,null,null,null,null,null,null,null,null,null,null,"1/1"]
[{"$f":"SUBTOTAL(3,$B$8:B117)","v":25},"اسينات ايمن محمود حامد قابيل","1ـ1",null,null,null,null,null,null,null,null,null,null,null,null,null,null,null,null,null,null,null,null,null,null,null,null,null,null,null,null,null,null,null,null,null,null,{"$f":"SUBTOTAL(3,$B$8:B117)","v":25},"  /    /    ",null,"  /   /    ",null,"  /   /    ",null,null,{"$f":"SUBTOTAL(3,$B$8:B117)","v":25},"اسينات ايمن محمود حامد قابيل","1ـ1",null,null,null,null,null,null,null,null,null,null,null,null,null,null,null,null,null,null,null,null,null,"1/1"]
[{"$f":"SUBTOTAL(3,$B$8:B118)","v":26},"امانى ايمن عبدالغنى السيد","1ـ1",null,null,null,null,null,null,null,null,null,null,null,null,null,null,null,null,null,null,null,null,null,null,null,null,null,null,null,null,null,null,null,null,null,null,{"$f":"SUBTOTAL(3,$B$8:B118)","v":26},"  /    /    ",null,"  /   /    ",null,"  /   /    ",null,null,{"$f":"SUBTOTAL(3,$B$8:B118)","v":26},"امانى ايمن عبدالغنى السيد","1ـ1",null,null,null,null,null,null,null,null,null,null,null,null,null,null,null,null,null,null,null,null,null,"1/1"]
[{"$f":"SUBTOTAL(3,$B$8:B119)","v":27},"امنيه تامر عبدالقادر عبدالحميد ابوسلام","1ـ1",null,null,null,null,null,null,null,null,null,null,null,null,null,null,null,null,null,null,null,null,null,null,null,null,null,null,null,null,null,null,null,null,null,null,{"$f":"SUBTOTAL(3,$B$8:B119)","v":27},"  /    /    ",null,"  /   /    ",null,"  /   /    ",null,null,{"$f":"SUBTOTAL(3,$B$8:B119)","v":27},"امنيه تامر عبدالقادر عبدالحميد ابوسلام","1ـ1",null,null,null,null,null,null,null,null,null,null,null,null,null,null,null,null,null,null,null,null,null,"1/1"]
[{"$f":"SUBTOTAL(3,$B$8:B120)","v":28},"اميره عبدالعزيز السيد محمد","1ـ1",null,null,null,null,null,null,null,null,null,null,null,null,null,null,null,null,null,null,null,null,null,null,null,null,null,null,null,null,null,null,null,null,null,null,{"$f":"SUBTOTAL(3,$B$8:B120)","v":28},"  /    /    ",null,"  /   /    ",null,"  /   /    ",null,null,{"$f":"SUBTOTAL(3,$B$8:B120)","v":28},"اميره عبدالعزيز السيد محمد","1ـ1",null,null,null,null,null,null,null,null,null,null,null,null,null,null,null,null,null,null,null,null,null,"1/1"]
[{"$f":"SUBTOTAL(3,$B$8:B121)","v":29},"انفال ابراهيم محمد ابراهيم عفان","1ـ1",null,null,null,null,null,null,null,null,null,null,null,null,null,null,null,null,null,null,null,null,null,null,null,null,null,null,null,null,null,null,null,null,null,null,{"$f":"SUBTOTAL(3,$B$8:B121)","v":29},"  /    /    ",null,"  /   /    ",null,"  /   /    ",null,null,{"$f":"SUBTOTAL(3,$B$8:B121)","v":29},"انفال ابراهيم محمد ابراهيم عفان","1ـ1",null,null,null,null,null,null,null,null,null,null,null,null,null,null,null,null,null,null,null,null,null,"1/1"]
[{"$f":"SUBTOTAL(3,$B$8:B122)","v":30},"ايسل محمد مصطفى حسن شرشر","1ـ1",null,null,null,null,null,null,null,null,null,null,null,null,null,null,null,null,null,null,null,null,null,null,null,null,null,null,null,null,null,null,null,null,null,null,{"$f":"SUBTOTAL(3,$B$8:B122)","v":30},"  /    /    ",null,"  /   /    ",null,"  /   /    ",null,null,{"$f":"SUBTOTAL(3,$B$8:B122)","v":30},"ايسل محمد مصطفى حسن شرشر","1ـ1",null,null,null,null,null,null,null,null,null,null,null,null,null,null,null,null,null,null,null,null,null,"1/1"]
[{"$f":"SUBTOTAL(3,$B$8:B123)","v":31},"ايمان عمرو محمد الفار","1ـ1",null,null,null,null,null,null,null,null,null,null,null,null,null,null,null,null,null,null,null,null,null,null,null,null,null,null,null,null,null,null,null,null,null,null,{"$f":"SUBTOTAL(3,$B$8:B123)","v":31},"  /    /    ",null,"  /   /    ",null,"  /   /    ",null,null,{"$f":"SUBTOTAL(3,$B$8:B123)","v":31},"ايمان عمرو محمد الفار","1ـ1",null,null,null,null,null,null,null,null,null,null,null,null,null,null,null,null,null,null,null,null,null,"1/1"]
[{"$f":"SUBTOTAL(3,$B$8:B124)","v":32},"ايمان فتحى حلمى الاعصر","1ـ1",null,null,null,null,null,null,null,null,null,null,null,null,null,null,null,null,null,null,null,null,null,null,null,null,null,null,null,null,null,null,null,null,null,null,{"$f":"SUBTOTAL(3,$B$8:B124)","v":32},"  /    /    ",null,"  /   /    ",null,"  /   /    ",null,null,{"$f":"SUBTOTAL(3,$B$8:B124)","v":32},"ايمان فتحى حلمى الاعصر","1ـ1",null,null,null,null,null,null,null,null,null,null,null,null,null,null,null,null,null,null,null,null,null,"1/1"]
[{"$f":"SUBTOTAL(3,$B$8:B125)","v":33},"ايناس مندوه سعيد مندوه","1ـ1",null,null,null,null,null,null,null,null,null,null,null,null,null,null,null,null,null,null,null,null,null,null,null,null,null,null,null,null,null,null,null,null,null,null,{"$f":"SUBTOTAL(3,$B$8:B125)","v":33},"  /    /    ",null,"  /   /    ",null,"  /   /    ",null,null,{"$f":"SUBTOTAL(3,$B$8:B125)","v":33},"ايناس مندوه سعيد مندوه","1ـ1",null,null,null,null,null,null,null,null,null,null,null,null,null,null,null,null,null,null,null,null,null,"1/1"]
[{"$f":"SUBTOTAL(3,$B$8:B126)","v":34},"ايه ايهاب نبيل يونس عبدالفتاح","1ـ1",null,null,null,null,null,null,null,null,null,null,null,null,null,null,null,null,null,null,null,null,null,null,null,null,null,null,null,null,null,null,null,null,null,null,{"$f":"SUBTOTAL(3,$B$8:B126)","v":34},"  /    /    ",null,"  /   /    ",null,"  /   /    ",null,null,{"$f":"SUBTOTAL(3,$B$8:B126)","v":34},"ايه ايهاب نبيل يونس عبدالفتاح","1ـ1",null,null,null,null,null,null,null,null,null,null,null,null,null,null,null,null,null,null,null,null,null,"1/1"]
[{"$f":"SUBTOTAL(3,$B$8:B127)","v":35},"بتول هانى ابوالمعاطى ابراهيم","1ـ1",null,null,null,null,null,null,null,null,null,null,null,null,null,null,null,null,null,null,null,null,null,null,null,null,null,null,null,null,null,null,null,null,null,null,{"$f":"SUBTOTAL(3,$B$8:B127)","v":35},"  /    /    ",null,"  /   /    ",null,"  /   /    ",null,null,{"$f":"SUBTOTAL(3,$B$8:B127)","v":35},"بتول هانى ابوالمعاطى ابراهيم","1ـ1",null,null,null,null,null,null,null,null,null,null,null,null,null,null,null,null,null,null,null,null,null,"1/1"]
[{"$f":"SUBTOTAL(3,$B$8:B128)","v":36},"بسمله اسماعيل محمد ابراهيم","1ـ1",null,null,null,null,null,null,null,null,null,null,null,null,null,null,null,null,null,null,null,null,null,null,null,null,null,null,null,null,null,null,null,null,null,null,{"$f":"SUBTOTAL(3,$B$8:B128)","v":36},"  /    /    ",null,"  /   /    ",null,"  /   /    ",null,null,{"$f":"SUBTOTAL(3,$B$8:B128)","v":36},"بسمله اسماعيل محمد ابراهيم","1ـ1",null,null,null,null,null,null,null,null,null,null,null,null,null,null,null,null,null,null,null,null,null,"1/1"]
[{"$f":"SUBTOTAL(3,$B$8:B129)","v":37},"بسمله علاء فتحى رمضان","1ـ1",null,null,null,null,null,null,null,null,null,null,null,null,null,null,null,null,null,null,null,null,null,null,null,null,null,null,null,null,null,null,null,null,null,null,{"$f":"SUBTOTAL(3,$B$8:B129)","v":37},"  /    /    ",null,"  /   /    ",null,"  /   /    ",null,null,{"$f":"SUBTOTAL(3,$B$8:B129)","v":37},"بسمله علاء فتحى رمضان","1ـ1",null,null,null,null,null,null,null,null,null,null,null,null,null,null,null,null,null,null,null,null,null,"1/1"]
[{"$f":"SUBTOTAL(3,$B$8:B130)","v":38},"بسنت طارق انور محمد الطناحى","1ـ1",null,null,null,null,null,null,null,null,null,null,null,null,null,null,null,null,null,null,null,null,null,null,null,null,null,null,null,null,null,null,null,null,null,null,{"$f":"SUBTOTAL(3,$B$8:B130)","v":38},"  /    /    ",null,"  /   /    ",null,"  /   /    ",null,null,{"$f":"SUBTOTAL(3,$B$8:B130)","v":38},"بسنت طارق انور محمد الطناحى","1ـ1",null,null,null,null,null,null,null,null,null,null,null,null,null,null,null,null,null,null,null,null,null,"1/1"]
[{"$f":"SUBTOTAL(3,$B$8:B131)","v":39},"بسنت علاء فتحى رمضان","1ـ1",null,null,null,null,null,null,null,null,null,null,null,null,null,null,null,null,null,null,null,null,null,null,null,null,null,null,null,null,null,null,null,null,null,null,{"$f":"SUBTOTAL(3,$B$8:B131)","v":39},"  /    /    ",null,"  /   /    ",null,"  /   /    ",null,null,{"$f":"SUBTOTAL(3,$B$8:B131)","v":39},"بسنت علاء فتحى رمضان","1ـ1",null,null,null,null,null,null,null,null,null,null,null,null,null,null,null,null,null,null,null,null,null,"1/1"]
[{"$f":"SUBTOTAL(3,$B$8:B132)","v":40},"تقوى محمد عبدالمجيد السيد الرفاعى","1ـ1",null,null,null,null,null,null,null,null,null,null,null,null,null,null,null,null,null,null,null,null,null,null,null,null,null,null,null,null,null,null,null,null,null,null,{"$f":"SUBTOTAL(3,$B$8:B132)","v":40},"  /    /    ",null,"  /   /    ",null,"  /   /    ",null,null,{"$f":"SUBTOTAL(3,$B$8:B132)","v":40},"تقوى محمد عبدالمجيد السيد الرفاعى","1ـ1",null,null,null,null,null,null,null,null,null,null,null,null,null,null,null,null,null,null,null,null,null,"1/1"]
[{"$f":"SUBTOTAL(3,$B$8:B133)","v":41},"جنه محمد الدسوقى محمد الجعار","1ـ1",null,null,null,null,null,null,null,null,null,null,null,null,null,null,null,null,null,null,null,null,null,null,null,null,null,null,null,null,null,null,null,null,null,null,{"$f":"SUBTOTAL(3,$B$8:B133)","v":41},"  /    /    ",null,"  /   /    ",null,"  /   /    ",null,null,{"$f":"SUBTOTAL(3,$B$8:B133)","v":41},"جنه محمد الدسوقى محمد الجعار","1ـ1",null,null,null,null,null,null,null,null,null,null,null,null,null,null,null,null,null,null,null,null,null,"1/1"]
[{"$f":"SUBTOTAL(3,$B$8:B134)","v":42},"جنى ابراهيم شبل على مرزوق","1ـ1",null,null,null,null,null,null,null,null,null,null,null,null,null,null,null,null,null,null,null,null,null,null,null,null,null,null,null,null,null,null,null,null,null,null,{"$f":"SUBTOTAL(3,$B$8:B134)","v":42},"  /    /    ",null,"  /   /    ",null,"  /   /    ",null,null,{"$f":"SUBTOTAL(3,$B$8:B134)","v":42},"جنى ابراهيم شبل على مرزوق","1ـ1",null,null,null,null,null,null,null,null,null,null,null,null,null,null,null,null,null,null,null,null,null,"1/1"]
[{"$f":"SUBTOTAL(3,$B$8:B135)","v":43},"جنى عبدالمجيد السيد عبدالمجيد ابوالنجا","1ـ1",null,null,null,null,null,null,null,null,null,null,null,null,null,null,null,null,null,null,null,null,null,null,null,null,null,null,null,null,null,null,null,null,null,null,{"$f":"SUBTOTAL(3,$B$8:B135)","v":43},"  /    /    ",null,"  /   /    ",null,"  /   /    ",null,null,{"$f":"SUBTOTAL(3,$B$8:B135)","v":43},"جنى عبدالمجيد السيد عبدالمجيد ابوالنجا","1ـ1",null,null,null,null,null,null,null,null,null,null,null,null,null,null,null,null,null,null,null,null,null,"1/1"]
[{"$f":"SUBTOTAL(3,$B$8:B136)","v":44},"جنى علاء عبدالعزيز السيد المجاعص","1ـ1",null,null,null,null,null,null,null,null,null,null,null,null,null,null,null,null,null,null,null,null,null,null,null,null,null,null,null,null,null,null,null,null,null,null,{"$f":"SUBTOTAL(3,$B$8:B136)","v":44},"  /    /    ",null,"  /   /    ",null,"  /   /    ",null,null,{"$f":"SUBTOTAL(3,$B$8:B136)","v":44},"جنى علاء عبدالعزيز السيد المجاعص","1ـ1",null,null,null,null,null,null,null,null,null,null,null,null,null,null,null,null,null,null,null,null,null,"1/1"]
[{"$f":"SUBTOTAL(3,$B$8:B137)","v":45},"جنى محمد عبد الرحيم عبد العال","1ـ1",null,null,null,null,null,null,null,null,null,null,null,null,null,null,null,null,null,null,null,null,null,null,null,null,null,null,null,null,null,null,null,null,null,null,{"$f":"SUBTOTAL(3,$B$8:B137)","v":45},"  /    /    ",null,"  /   /    ",null,"  /   /    ",null,null,{"$f":"SUBTOTAL(3,$B$8:B137)","v":45},{"$f":"B137","v":"جنى محمد عبد الرحيم عبد العال"},{"$f":"C137","v":"1ـ1"},null,null,null,null,null,null,null,null,null,null,null,null,null,null,null,null,null,null,null,null,null,"1/1"]
[{"$f":"SUBTOTAL(3,$B$8:B138)","v":46},"جنى محمد مصطفى ابو الفتوح احمد","1ـ1",null,null,null,null,null,null,null,null,null,null,null,null,null,null,null,null,null,null,null,null,null,null,null,null,null,null,null,null,null,null,null,null,null,null,{"$f":"SUBTOTAL(3,$B$8:B138)","v":46},"  /    /    ",null,"  /   /    ",null,"  /   /    ",null,null,{"$f":"SUBTOTAL(3,$B$8:B138)","v":46},"جنى محمد مصطفى ابو الفتوح احمد","1ـ1",null,null,null,null,null,null,null,null,null,null,null,null,null,null,null,null,null,null,null,null,null,"1/1"]
[{"$f":"SUBTOTAL(3,$B$8:B139)","v":47},"جهاد اشرف ابوالفتوح محمد الخواجه","1ـ1",null,null,null,null,null,null,null,null,null,null,null,null,null,null,null,null,null,null,null,null,null,null,null,null,null,null,null,null,null,null,null,null,null,null,{"$f":"SUBTOTAL(3,$B$8:B139)","v":47},"  /    /    ",null,"  /   /    ",null,"  /   /    ",null,null,{"$f":"SUBTOTAL(3,$B$8:B139)","v":47},"جهاد اشرف ابوالفتوح محمد الخواجه","1ـ1",null,null,null,null,null,null,null,null,null,null,null,null,null,null,null,null,null,null,null,null,null,"1/1"]
[{"$f":"SUBTOTAL(3,$B$8:B140)","v":47},"جودى على محمد عبدالفتاح حمام","1ـ2",null,null,null,null,null,null,null,null,null,null,null,null,null,null,null,null,null,null,null,null,null,null,null,null,null,null,null,null,null,null,null,null,null,null,{"$f":"SUBTOTAL(3,$B$8:B140)","v":47},"  /    /    ",null,"  /   /    ",null,"  /   /    ",null,null,{"$f":"SUBTOTAL(3,$B$8:B140)","v":47},"جودى على محمد عبدالفتاح حمام","1ـ2",null,null,null,null,null,null,null,null,null,null,null,null,null,null,null,null,null,null,null,null,null,"2/1"]
[{"$f":"SUBTOTAL(3,$B$8:B141)","v":47},"جومانا ياسر عبدالمجيد عبدالغنى تركى","1ـ2",null,null,null,null,null,null,null,null,null,null,null,null,null,null,null,null,null,null,null,null,null,null,null,null,null,null,null,null,null,null,null,null,null,null,{"$f":"SUBTOTAL(3,$B$8:B141)","v":47},"  /    /    ",null,"  /   /    ",null,"  /   /    ",null,null,{"$f":"SUBTOTAL(3,$B$8:B141)","v":47},"جومانا ياسر عبدالمجيد عبدالغنى تركى","1ـ2",null,null,null,null,null,null,null,null,null,null,null,null,null,null,null,null,null,null,null,null,null,"2/1"]
[{"$f":"SUBTOTAL(3,$B$8:B142)","v":47},"جومانه محمد ابراهيم محروس المشد","1ـ2",null,null,null,null,null,null,null,null,null,null,null,null,null,null,null,null,null,null,null,null,null,null,null,null,null,null,null,null,null,null,null,null,null,null,{"$f":"SUBTOTAL(3,$B$8:B142)","v":47},"  /    /    ",null,"  /   /    ",null,"  /   /    ",null,null,{"$f":"SUBTOTAL(3,$B$8:B142)","v":47},"جومانه محمد ابراهيم محروس المشد","1ـ2",null,null,null,null,null,null,null,null,null,null,null,null,null,null,null,null,null,null,null,null,null,"2/1"]
[{"$f":"SUBTOTAL(3,$B$8:B143)","v":47},"جيهان عادل سعد حسين بدار","1ـ2",null,null,null,null,null,null,null,null,null,null,null,null,null,null,null,null,null,null,null,null,null,null,null,null,null,null,null,null,null,null,null,null,null,null,{"$f":"SUBTOTAL(3,$B$8:B143)","v":47},"  /    /    ",null,"  /   /    ",null,"  /   /    ",null,null,{"$f":"SUBTOTAL(3,$B$8:B143)","v":47},"جيهان عادل سعد حسين بدار","1ـ2",null,null,null,null,null,null,null,null,null,null,null,null,null,null,null,null,null,null,null,null,null,"2/1"]
[{"$f":"SUBTOTAL(3,$B$8:B144)","v":47},"حبيبه حماده عبدالله عباس جاد","1ـ2",null,null,null,null,null,null,null,null,null,null,null,null,null,null,null,null,null,null,null,null,null,null,null,null,null,null,null,null,null,null,null,null,null,null,{"$f":"SUBTOTAL(3,$B$8:B144)","v":47},"  /    /    ",null,"  /   /    ",null,"  /   /    ",null,null,{"$f":"SUBTOTAL(3,$B$8:B144)","v":47},"حبيبه حماده عبدالله عباس جاد","1ـ2",null,null,null,null,null,null,null,null,null,null,null,null,null,null,null,null,null,null,null,null,null,"2/1"]
[{"$f":"SUBTOTAL(3,$B$8:B145)","v":47},"حنين عبدالله شعبان على","1ـ2",null,null,null,null,null,null,null,null,null,null,null,null,null,null,null,null,null,null,null,null,null,null,null,null,null,null,null,null,null,null,null,null,null,null,{"$f":"SUBTOTAL(3,$B$8:B145)","v":47},"  /    /    ",null,"  /   /    ",null,"  /   /    ",null,null,{"$f":"SUBTOTAL(3,$B$8:B145)","v":47},"حنين عبدالله شعبان على","1ـ2",null,null,null,null,null,null,null,null,null,null,null,null,null,null,null,null,null,null,null,null,null,"2/1"]
[{"$f":"SUBTOTAL(3,$B$8:B146)","v":47},"حنين قاسم ابراهيم قاسم على عبيد","1ـ2",null,null,null,null,null,null,null,null,null,null,null,null,null,null,null,null,null,null,null,null,null,null,null,null,null,null,null,null,null,null,null,null,null,null,{"$f":"SUBTOTAL(3,$B$8:B146)","v":47},"  /    /    ",null,"  /   /    ",null,"  /   /    ",null,null,{"$f":"SUBTOTAL(3,$B$8:B146)","v":47},"حنين قاسم ابراهيم قاسم على عبيد","1ـ2",null,null,null,null,null,null,null,null,null,null,null,null,null,null,null,null,null,null,null,null,null,"2/1"]
[{"$f":"SUBTOTAL(3,$B$8:B147)","v":47},"رحمة ايمن ابراهيم فتوح شهاب","1ـ2",null,null,null,null,null,null,null,null,null,null,null,null,null,null,null,null,null,null,null,null,null,null,null,null,null,null,null,null,null,null,null,null,null,null,{"$f":"SUBTOTAL(3,$B$8:B147)","v":47},"  /    /    ",null,"  /   /    ",null,"  /   /    ",null,null,{"$f":"SUBTOTAL(3,$B$8:B147)","v":47},"رحمة ايمن ابراهيم فتوح شهاب","1ـ2",null,null,null,null,null,null,null,null,null,null,null,null,null,null,null,null,null,null,null,null,null,"2/1"]
[{"$f":"SUBTOTAL(3,$B$8:B148)","v":47},"رحمه حمادة فتح الله مرسى","1ـ2",null,null,null,null,null,null,null,null,null,null,null,null,null,null,null,null,null,null,null,null,null,null,null,null,null,null,null,null,null,null,null,null,null,null,{"$f":"SUBTOTAL(3,$B$8:B148)","v":47},"  /    /    ",null,"  /   /    ",null,"  /   /    ",null,null,{"$f":"SUBTOTAL(3,$B$8:B148)","v":47},"رحمه حمادة فتح الله مرسى","1ـ2",null,null,null,null,null,null,null,null,null,null,null,null,null,null,null,null,null,null,null,null,null,"2/1"]
[{"$f":"SUBTOTAL(3,$B$8:B149)","v":47},"رحمه عبدالفتاح محمود عبدالفتاح الرفاعى","1ـ2",null,null,null,null,null,null,null,null,null,null,null,null,null,null,null,null,null,null,null,null,null,null,null,null,null,null,null,null,null,null,null,null,null,null,{"$f":"SUBTOTAL(3,$B$8:B149)","v":47},"  /    /    ",null,"  /   /    ",null,"  /   /    ",null,null,{"$f":"SUBTOTAL(3,$B$8:B149)","v":47},"رحمه عبدالفتاح محمود عبدالفتاح الرفاعى","1ـ2",null,null,null,null,null,null,null,null,null,null,null,null,null,null,null,null,null,null,null,null,null,"2/1"]
[{"$f":"SUBTOTAL(3,$B$8:B150)","v":47},"رحمه محمد ماجد حسن الوردانى","1ـ2",null,null,null,null,null,null,null,null,null,null,null,null,null,null,null,null,null,null,null,null,null,null,null,null,null,null,null,null,null,null,null,null,null,null,{"$f":"SUBTOTAL(3,$B$8:B150)","v":47},"  /    /    ",null,"  /   /    ",null,"  /   /    ",null,null,{"$f":"SUBTOTAL(3,$B$8:B150)","v":47},"رحمه محمد ماجد حسن الوردانى","1ـ2",null,null,null,null,null,null,null,null,null,null,null,null,null,null,null,null,null,null,null,null,null,"2/1"]
[{"$f":"SUBTOTAL(3,$B$8:B151)","v":47},"رحمه ياسر مصباح ابوالعنين الملاح","1ـ2",null,null,null,null,null,null,null,null,null,null,null,null,null,null,null,null,null,null,null,null,null,null,null,null,null,null,null,null,null,null,null,null,null,null,{"$f":"SUBTOTAL(3,$B$8:B151)","v":47},"  /    /    ",null,"  /   /    ",null,"  /   /    ",null,null,{"$f":"SUBTOTAL(3,$B$8:B151)","v":47},"رحمه ياسر مصباح ابوالعنين الملاح","1ـ2",null,null,null,null,null,null,null,null,null,null,null,null,null,null,null,null,null,null,null,null,null,"2/1"]
[{"$f":"SUBTOTAL(3,$B$8:B152)","v":47},"رفيدة تامر سامى على الجروانى","1ـ2",null,null,null,null,null,null,null,null,null,null,null,null,null,null,null,null,null,null,null,null,null,null,null,null,null,null,null,null,null,null,null,null,null,null,{"$f":"SUBTOTAL(3,$B$8:B152)","v":47},"  /    /    ",null,"  /   /    ",null,"  /   /    ",null,null,{"$f":"SUBTOTAL(3,$B$8:B152)","v":47},"رفيدة تامر سامى على الجروانى","1ـ2",null,null,null,null,null,null,null,null,null,null,null,null,null,null,null,null,null,null,null,null,null,"2/1"]
[{"$f":"SUBTOTAL(3,$B$8:B153)","v":47},"رفيده محمود السيد عبدالفتاح تركى","1ـ2",null,null,null,null,null,null,null,null,null,null,null,null,null,null,null,null,null,null,null,null,null,null,null,null,null,null,null,null,null,null,null,null,null,null,{"$f":"SUBTOTAL(3,$B$8:B153)","v":47},"  /    /    ",null,"  /   /    ",null,"  /   /    ",null,null,{"$f":"SUBTOTAL(3,$B$8:B153)","v":47},"رفيده محمود السيد عبدالفتاح تركى","1ـ2",null,null,null,null,null,null,null,null,null,null,null,null,null,null,null,null,null,null,null,null,null,"2/1"]
[{"$f":"SUBTOTAL(3,$B$8:B154)","v":47},"رقيه محمد السيد الخطيب","1ـ2",null,null,null,null,null,null,null,null,null,null,null,null,null,null,null,null,null,null,null,null,null,null,null,null,null,null,null,null,null,null,null,null,null,null,{"$f":"SUBTOTAL(3,$B$8:B154)","v":47},"  /    /    ",null,"  /   /    ",null,"  /   /    ",null,null,{"$f":"SUBTOTAL(3,$B$8:B154)","v":47},"رقيه محمد السيد الخطيب","1ـ2",null,null,null,null,null,null,null,null,null,null,null,null,null,null,null,null,null,null,null,null,null,"2/1"]
[{"$f":"SUBTOTAL(3,$B$8:B155)","v":47},"رقيه محمد السيد محمد ابراهيم","1ـ2",null,null,null,null,null,null,null,null,null,null,null,null,null,null,null,null,null,null,null,null,null,null,null,null,null,null,null,null,null,null,null,null,null,null,{"$f":"SUBTOTAL(3,$B$8:B155)","v":47},"  /    /    ",null,"  /   /    ",null,"  /   /    ",null,null,{"$f":"SUBTOTAL(3,$B$8:B155)","v":47},"رقيه محمد السيد محمد ابراهيم","1ـ2",null,null,null,null,null,null,null,null,null,null,null,null,null,null,null,null,null,null,null,null,null,"2/1"]
[{"$f":"SUBTOTAL(3,$B$8:B156)","v":47},"رقيه محمد عبدالعال محمد عبدالعال","1ـ2",null,null,null,null,null,null,null,null,null,null,null,null,null,null,null,null,null,null,null,null,null,null,null,null,null,null,null,null,null,null,null,null,null,null,{"$f":"SUBTOTAL(3,$B$8:B156)","v":47},"  /    /    ",null,"  /   /    ",null,"  /   /    ",null,null,{"$f":"SUBTOTAL(3,$B$8:B156)","v":47},"رقيه محمد عبدالعال محمد عبدالعال","1ـ2",null,null,null,null,null,null,null,null,null,null,null,null,null,null,null,null,null,null,null,null,null,"2/1"]
[{"$f":"SUBTOTAL(3,$B$8:B157)","v":47},"رقيه محمود محمد جابر ابوعيد","1ـ2",null,null,null,null,null,null,null,null,null,null,null,null,null,null,null,null,null,null,null,null,null,null,null,null,null,null,null,null,null,null,null,null,null,null,{"$f":"SUBTOTAL(3,$B$8:B157)","v":47},"  /    /    ",null,"  /   /    ",null,"  /   /    ",null,null,{"$f":"SUBTOTAL(3,$B$8:B157)","v":47},"رقيه محمود محمد جابر ابوعيد","1ـ2",null,null,null,null,null,null,null,null,null,null,null,null,null,null,null,null,null,null,null,null,null,"2/1"]
[{"$f":"SUBTOTAL(3,$B$8:B158)","v":47},"رنا احمد عبد العاطى ابو شرب","1ـ2",null,null,null,null,null,null,null,null,null,null,null,null,null,null,null,null,null,null,null,null,null,null,null,null,null,null,null,null,null,null,null,null,null,null,{"$f":"SUBTOTAL(3,$B$8:B158)","v":47},"  /    /    ",null,"  /   /    ",null,"  /   /    ",null,null,{"$f":"SUBTOTAL(3,$B$8:B158)","v":47},"رنا احمد عبد العاطى ابو شرب","1ـ2",null,null,null,null,null,null,null,null,null,null,null,null,null,null,null,null,null,null,null,null,null,"2/1"]
[{"$f":"SUBTOTAL(3,$B$8:B159)","v":47},"رنا منتصر عبدالوهاب محمد عبدالدايم","1ـ2",null,null,null,null,null,null,null,null,null,null,null,null,null,null,null,null,null,null,null,null,null,null,null,null,null,null,null,null,null,null,null,null,null,null,{"$f":"SUBTOTAL(3,$B$8:B159)","v":47},"  /    /    ",null,"  /   /    ",null,"  /   /    ",null,null,{"$f":"SUBTOTAL(3,$B$8:B159)","v":47},"رنا منتصر عبدالوهاب محمد عبدالدايم","1ـ2",null,null,null,null,null,null,null,null,null,null,null,null,null,null,null,null,null,null,null,null,null,"2/1"]
[{"$f":"SUBTOTAL(3,$B$8:B160)","v":47},"روز احمد حلمى محمد البرل","1ـ4",null,null,null,null,null,null,null,null,null,null,null,null,null,null,null,null,null,null,null,null,null,null,null,null,null,null,null,null,null,null,null,null,null,null,{"$f":"SUBTOTAL(3,$B$8:B160)","v":47},"  /    /    ",null,"  /   /    ",null,"  /   /    ",null,null,{"$f":"SUBTOTAL(3,$B$8:B160)","v":47},"روز احمد حلمى محمد البرل","1ـ4",null,null,null,null,null,null,null,null,null,null,null,null,null,null,null,null,null,null,null,null,null,"2/1"]
[{"$f":"SUBTOTAL(3,$B$8:B161)","v":47},"روضه سمير القطب الشوبرى","1ـ2",null,null,null,null,null,null,null,null,null,null,null,null,null,null,null,null,null,null,null,null,null,null,null,null,null,null,null,null,null,null,null,null,null,null,{"$f":"SUBTOTAL(3,$B$8:B161)","v":47},"  /    /    ",null,"  /   /    ",null,"  /   /    ",null,null,{"$f":"SUBTOTAL(3,$B$8:B161)","v":47},"روضه سمير القطب الشوبرى","1ـ2",null,null,null,null,null,null,null,null,null,null,null,null,null,null,null,null,null,null,null,null,null,"2/1"]
[{"$f":"SUBTOTAL(3,$B$8:B162)","v":47},"روضه مجدى رمضان منجود","1ـ2",null,null,null,null,null,null,null,null,null,null,null,null,null,null,null,null,null,null,null,null,null,null,null,null,null,null,null,null,null,null,null,null,null,null,{"$f":"SUBTOTAL(3,$B$8:B162)","v":47},"  /    /    ",null,"  /   /    ",null,"  /   /    ",null,null,{"$f":"SUBTOTAL(3,$B$8:B162)","v":47},"روضه مجدى رمضان منجود","1ـ2",null,null,null,null,null,null,null,null,null,null,null,null,null,null,null,null,null,null,null,null,null,"2/1"]
[{"$f":"SUBTOTAL(3,$B$8:B163)","v":47},"رؤيه محمد المغاورى رمضان","1ـ2",null,null,null,null,null,null,null,null,null,null,null,null,null,null,null,null,null,null,null,null,null,null,null,null,null,null,null,null,null,null,null,null,null,null,{"$f":"SUBTOTAL(3,$B$8:B163)","v":47},"  /    /    ",null,"  /   /    ",null,"  /   /    ",null,null,{"$f":"SUBTOTAL(3,$B$8:B163)","v":47},"رؤيه محمد المغاورى رمضان","1ـ2",null,null,null,null,null,null,null,null,null,null,null,null,null,null,null,null,null,null,null,null,null,"2/1"]
[{"$f":"SUBTOTAL(3,$B$8:B164)","v":47},"رؤيه هانى السيد احمد حسان","1ـ2",null,null,null,null,null,null,null,null,null,null,null,null,null,null,null,null,null,null,null,null,null,null,null,null,null,null,null,null,null,null,null,null,null,null,{"$f":"SUBTOTAL(3,$B$8:B164)","v":47},"  /    /    ",null,"  /   /    ",null,"  /   /    ",null,null,{"$f":"SUBTOTAL(3,$B$8:B164)","v":47},"رؤيه هانى السيد احمد حسان","1ـ2",null,null,null,null,null,null,null,null,null,null,null,null,null,null,null,null,null,null,null,null,null,"2/1"]
[{"$f":"SUBTOTAL(3,$B$8:B165)","v":47},"ريتاج اسماعيل ذكريا شوقى اسماعيل ريان","1ـ3",null,null,null,null,null,null,null,null,null,null,null,null,null,null,null,null,null,null,null,null,null,null,null,null,null,null,null,null,null,null,null,null,null,null,{"$f":"SUBTOTAL(3,$B$8:B165)","v":47},"  /    /    ",null,"  /   /    ",null,"  /   /    ",null,null,{"$f":"SUBTOTAL(3,$B$8:B165)","v":47},"ريتاج اسماعيل ذكريا شوقى اسماعيل ريان","1ـ3",null,null,null,null,null,null,null,null,null,null,null,null,null,null,null,null,null,null,null,null,null,"3/1"]
[{"$f":"SUBTOTAL(3,$B$8:B166)","v":47},"ريتاج انس محمد محمد الجعار","1ـ3",null,null,null,null,null,null,null,null,null,null,null,null,null,null,null,null,null,null,null,null,null,null,null,null,null,null,null,null,null,null,null,null,null,null,{"$f":"SUBTOTAL(3,$B$8:B166)","v":47},"  /    /    ",null,"  /   /    ",null,"  /   /    ",null,null,{"$f":"SUBTOTAL(3,$B$8:B166)","v":47},"ريتاج انس محمد محمد الجعار","1ـ3",null,null,null,null,null,null,null,null,null,null,null,null,null,null,null,null,null,null,null,null,null,"1/3"]
[{"$f":"SUBTOTAL(3,$B$8:B167)","v":47},"ريتاج مدحت محمد عبدالفتاح البهلوان","1ـ3",null,null,null,null,null,null,null,null,null,null,null,null,null,null,null,null,null,null,null,null,null,null,null,null,null,null,null,null,null,null,null,null,null,null,{"$f":"SUBTOTAL(3,$B$8:B167)","v":47},"  /    /    ",null,"  /   /    ",null,"  /   /    ",null,null,{"$f":"SUBTOTAL(3,$B$8:B167)","v":47},"ريتاج مدحت محمد عبدالفتاح البهلوان","1ـ3",null,null,null,null,null,null,null,null,null,null,null,null,null,null,null,null,null,null,null,null,null,"3/1"]
[{"$f":"SUBTOTAL(3,$B$8:B168)","v":47},"ريسان عبدالخالق اسامه عبدالخالق الجعار","1ـ3",null,null,null,null,null,null,null,null,null,null,null,null,null,null,null,null,null,null,null,null,null,null,null,null,null,null,null,null,null,null,null,null,null,null,{"$f":"SUBTOTAL(3,$B$8:B168)","v":47},"  /    /    ",null,"  /   /    ",null,"  /   /    ",null,null,{"$f":"SUBTOTAL(3,$B$8:B168)","v":47},"ريسان عبدالخالق اسامه عبدالخالق الجعار","1ـ3",null,null,null,null,null,null,null,null,null,null,null,null,null,null,null,null,null,null,null,null,null,"3/1"]
[{"$f":"SUBTOTAL(3,$B$8:B169)","v":47},"ريم ناجى فايز عبدالجواد","1ـ3",null,null,null,null,null,null,null,null,null,null,null,null,null,null,null,null,null,null,null,null,null,null,null,null,null,null,null,null,null,null,null,null,null,null,{"$f":"SUBTOTAL(3,$B$8:B169)","v":47},"  /    /    ",null,"  /   /    ",null,"  /   /    ",null,null,{"$f":"SUBTOTAL(3,$B$8:B169)","v":47},"ريم ناجى فايز عبدالجواد","1ـ3",null,null,null,null,null,null,null,null,null,null,null,null,null,null,null,null,null,null,null,null,null,"3/1"]
[{"$f":"SUBTOTAL(3,$B$8:B170)","v":47},"ريماس محمد ابراهيم حسين","1ـ3",null,null,null,null,null,null,null,null,null,null,null,null,null,null,null,null,null,null,null,null,null,null,null,null,null,null,null,null,null,null,null,null,null,null,{"$f":"SUBTOTAL(3,$B$8:B170)","v":47},"  /    /    ",null,"  /   /    ",null,"  /   /    ",null,null,{"$f":"SUBTOTAL(3,$B$8:B170)","v":47},"ريماس محمد ابراهيم حسين","1ـ3",null,null,null,null,null,null,null,null,null,null,null,null,null,null,null,null,null,null,null,null,null,"3/1"]
[{"$f":"SUBTOTAL(3,$B$8:B171)","v":47},"ريماس محمد مسعد غريب بيومى","1ـ3",null,null,null,null,null,null,null,null,null,null,null,null,null,null,null,null,null,null,null,null,null,null,null,null,null,null,null,null,null,null,null,null,null,null,{"$f":"SUBTOTAL(3,$B$8:B171)","v":47},"  /    /    ",null,"  /   /    ",null,"  /   /    ",null,null,{"$f":"SUBTOTAL(3,$B$8:B171)","v":47},"ريماس محمد مسعد غريب بيومى","1ـ3",null,null,null,null,null,null,null,null,null,null,null,null,null,null,null,null,null,null,null,null,null,"3/1"]
[{"$f":"SUBTOTAL(3,$B$8:B172)","v":47},"ريماس محمد نورالدين عبدالعال مشعل","1ـ3",null,null,null,null,null,null,null,null,null,null,null,null,null,null,null,null,null,null,null,null,null,null,null,null,null,null,null,null,null,null,null,null,null,null,{"$f":"SUBTOTAL(3,$B$8:B172)","v":47},"  /    /    ",null,"  /   /    ",null,"  /   /    ",null,null,{"$f":"SUBTOTAL(3,$B$8:B172)","v":47},"ريماس محمد نورالدين عبدالعال مشعل","1ـ3",null,null,null,null,null,null,null,null,null,null,null,null,null,null,null,null,null,null,null,null,null,"3/1"]
[{"$f":"SUBTOTAL(3,$B$8:B173)","v":47},"ريماس ياسر احمد محمد عبدالجواد","1ـ3",null,null,null,null,null,null,null,null,null,null,null,null,null,null,null,null,null,null,null,null,null,null,null,null,null,null,null,null,null,null,null,null,null,null,{"$f":"SUBTOTAL(3,$B$8:B173)","v":47},"  /    /    ",null,"  /   /    ",null,"  /   /    ",null,null,{"$f":"SUBTOTAL(3,$B$8:B173)","v":47},"ريماس ياسر احمد محمد عبدالجواد","1ـ3",null,null,null,null,null,null,null,null,null,null,null,null,null,null,null,null,null,null,null,null,null,"3/1"]
[{"$f":"SUBTOTAL(3,$B$8:B174)","v":47},"ساندى سعيد انور عبدالمنعم ","1ـ3",null,null,null,null,null,null,null,null,null,null,null,null,null,null,null,null,null,null,null,null,null,null,null,null,null,null,null,null,null,null,null,null,null,null,{"$f":"SUBTOTAL(3,$B$8:B174)","v":47},"  /    /    ",null,"  /   /    ",null,"  /   /    ",null,null,{"$f":"SUBTOTAL(3,$B$8:B174)","v":47},"ساندى سعيد انور عبدالمنعم ","1ـ3",null,null,null,null,null,null,null,null,null,null,null,null,null,null,null,null,null,null,null,null,null,"3/1"]
[{"$f":"SUBTOTAL(3,$B$8:B175)","v":47},"ساندى محمود عبدالخالق على الباجورى","1ـ3",null,null,null,null,null,null,null,null,null,null,null,null,null,null,null,null,null,null,null,null,null,null,null,null,null,null,null,null,null,null,null,null,null,null,{"$f":"SUBTOTAL(3,$B$8:B175)","v":47},"  /    /    ",null,"  /   /    ",null,"  /   /    ",null,null,{"$f":"SUBTOTAL(3,$B$8:B175)","v":47},"ساندى محمود عبدالخالق على الباجورى","1ـ3",null,null,null,null,null,null,null,null,null,null,null,null,null,null,null,null,null,null,null,null,null,"3/1"]
[{"$f":"SUBTOTAL(3,$B$8:B176)","v":47},"ساندى مصطفى عزمى جمعه حسن حسين","1ـ3",null,null,null,null,null,null,null,null,null,null,null,null,null,null,null,null,null,null,null,null,null,null,null,null,null,null,null,null,null,null,null,null,null,null,{"$f":"SUBTOTAL(3,$B$8:B176)","v":47},"  /    /    ",null,"  /   /    ",null,"  /   /    ",null,null,{"$f":"SUBTOTAL(3,$B$8:B176)","v":47},"ساندى مصطفى عزمى جمعه حسن حسين","1ـ3",null,null,null,null,null,null,null,null,null,null,null,null,null,null,null,null,null,null,null,null,null,"3/1"]
[{"$f":"SUBTOTAL(3,$B$8:B177)","v":47},"سجده احمد عبدالخالق سالم","1ـ3",null,null,null,null,null,null,null,null,null,null,null,null,null,null,null,null,null,null,null,null,null,null,null,null,null,null,null,null,null,null,null,null,null,null,{"$f":"SUBTOTAL(3,$B$8:B177)","v":47},"  /    /    ",null,"  /   /    ",null,"  /   /    ",null,null,{"$f":"SUBTOTAL(3,$B$8:B177)","v":47},"سجده احمد عبدالخالق سالم","1ـ3",null,null,null,null,null,null,null,null,null,null,null,null,null,null,null,null,null,null,null,null,null,"3/1"]
[{"$f":"SUBTOTAL(3,$B$8:B178)","v":47},"سجده سعد على عاشور","1ـ3",null,null,null,null,null,null,null,null,null,null,null,null,null,null,null,null,null,null,null,null,null,null,null,null,null,null,null,null,null,null,null,null,null,null,{"$f":"SUBTOTAL(3,$B$8:B178)","v":47},"  /    /    ",null,"  /   /    ",null,"  /   /    ",null,null,{"$f":"SUBTOTAL(3,$B$8:B178)","v":47},"سجده سعد على عاشور","1ـ3",null,null,null,null,null,null,null,null,null,null,null,null,null,null,null,null,null,null,null,null,null,"3/1"]
[{"$f":"SUBTOTAL(3,$B$8:B179)","v":47},"سجده صلاح عبدالعال السيد الحفناوى","1ـ3",null,null,null,null,null,null,null,null,null,null,null,null,null,null,null,null,null,null,null,null,null,null,null,null,null,null,null,null,null,null,null,null,null,null,{"$f":"SUBTOTAL(3,$B$8:B179)","v":47},"  /    /    ",null,"  /   /    ",null,"  /   /    ",null,null,{"$f":"SUBTOTAL(3,$B$8:B179)","v":47},"سجده صلاح عبدالعال السيد الحفناوى","1ـ3",null,null,null,null,null,null,null,null,null,null,null,null,null,null,null,null,null,null,null,null,null,"3/1"]
[{"$f":"SUBTOTAL(3,$B$8:B180)","v":47},"سجده محمد عبدالله ابوالنصر","1ـ3",null,null,null,null,null,null,null,null,null,null,null,null,null,null,null,null,null,null,null,null,null,null,null,null,null,null,null,null,null,null,null,null,null,null,{"$f":"SUBTOTAL(3,$B$8:B180)","v":47},"  /    /    ",null,"  /   /    ",null,"  /   /    ",null,null,{"$f":"SUBTOTAL(3,$B$8:B180)","v":47},"سجده محمد عبدالله ابوالنصر","1ـ3",null,null,null,null,null,null,null,null,null,null,null,null,null,null,null,null,null,null,null,null,null,"3/1"]
[{"$f":"SUBTOTAL(3,$B$8:B181)","v":47},"سجده مصطفى محمود  عبدالمجيد محمد القحافى","1ـ3",null,null,null,null,null,null,null,null,null,null,null,null,null,null,null,null,null,null,null,null,null,null,null,null,null,null,null,null,null,null,null,null,null,null,{"$f":"SUBTOTAL(3,$B$8:B181)","v":47},"  /    /    ",null,"  /   /    ",null,"  /   /    ",null,null,{"$f":"SUBTOTAL(3,$B$8:B181)","v":47},"سجده مصطفى محمود  عبدالمجيد محمد القحافى","1ـ3",null,null,null,null,null,null,null,null,null,null,null,null,null,null,null,null,null,null,null,null,null,"3/1"]
[{"$f":"SUBTOTAL(3,$B$8:B182)","v":47},"سلمى انس عبدالخالق سالم","1ـ3",null,null,null,null,null,null,null,null,null,null,null,null,null,null,null,null,null,null,null,null,null,null,null,null,null,null,null,null,null,null,null,null,null,null,{"$f":"SUBTOTAL(3,$B$8:B182)","v":47},"  /    /    ",null,"  /   /    ",null,"  /   /    ",null,null,{"$f":"SUBTOTAL(3,$B$8:B182)","v":47},"سلمى انس عبدالخالق سالم","1ـ3",null,null,null,null,null,null,null,null,null,null,null,null,null,null,null,null,null,null,null,null,null,"3/1"]
[{"$f":"SUBTOTAL(3,$B$8:B183)","v":47},"سلمى محمد حامد ابراهيم خاطر","1ـ3",null,null,null,null,null,null,null,null,null,null,null,null,null,null,null,null,null,null,null,null,null,null,null,null,null,null,null,null,null,null,null,null,null,null,{"$f":"SUBTOTAL(3,$B$8:B183)","v":47},"  /    /    ",null,"  /   /    ",null,"  /   /    ",null,null,{"$f":"SUBTOTAL(3,$B$8:B183)","v":47},"سلمى محمد حامد ابراهيم خاطر","1ـ3",null,null,null,null,null,null,null,null,null,null,null,null,null,null,null,null,null,null,null,null,null,"3/1"]
[{"$f":"SUBTOTAL(3,$B$8:B184)","v":47},"سلمى محمد شبل عبدالغفار الخطيب","1ـ3",null,null,null,null,null,null,null,null,null,null,null,null,null,null,null,null,null,null,null,null,null,null,null,null,null,null,null,null,null,null,null,null,null,null,{"$f":"SUBTOTAL(3,$B$8:B184)","v":47},"  /    /    ",null,"  /   /    ",null,"  /   /    ",null,null,{"$f":"SUBTOTAL(3,$B$8:B184)","v":47},"سلمى محمد شبل عبدالغفار الخطيب","1ـ3",null,null,null,null,null,null,null,null,null,null,null,null,null,null,null,null,null,null,null,null,null,"3/1"]
[{"$f":"SUBTOTAL(3,$B$8:B185)","v":47},"سلمى ناصر السيد عبدالدايم","1ـ3",null,null,null,null,null,null,null,null,null,null,null,null,null,null,null,null,null,null,null,null,null,null,null,null,null,null,null,null,null,null,null,null,null,null,{"$f":"SUBTOTAL(3,$B$8:B185)","v":47},"  /    /    ",null,"  /   /    ",null,"  /   /    ",null,null,{"$f":"SUBTOTAL(3,$B$8:B185)","v":47},"سلمى ناصر السيد عبدالدايم","1ـ3",null,null,null,null,null,null,null,null,null,null,null,null,null,null,null,null,null,null,null,null,null,"3/1"]
[{"$f":"SUBTOTAL(3,$B$8:B186)","v":47},"سما احمد ابراهيم عبداللطيف سلامه","1ـ3",null,null,null,null,null,null,null,null,null,null,null,null,null,null,null,null,null,null,null,null,null,null,null,null,null,null,null,null,null,null,null,null,null,null,{"$f":"SUBTOTAL(3,$B$8:B186)","v":47},"  /    /    ",null,"  /   /    ",null,"  /   /    ",null,null,{"$f":"SUBTOTAL(3,$B$8:B186)","v":47},"سما احمد ابراهيم عبداللطيف سلامه","1ـ3",null,null,null,null,null,null,null,null,null,null,null,null,null,null,null,null,null,null,null,null,null,"3/1"]
[{"$f":"SUBTOTAL(3,$B$8:B187)","v":47},"سما محمد على طه ابوسلامه","1ـ2",null,null,null,null,null,null,null,null,null,null,null,null,null,null,null,null,null,null,null,null,null,null,null,null,null,null,null,null,null,null,null,null,null,null,{"$f":"SUBTOTAL(3,$B$8:B187)","v":47},"  /    /    ",null,"  /   /    ",null,"  /   /    ",null,null,{"$f":"SUBTOTAL(3,$B$8:B187)","v":47},"سما محمد على طه ابوسلامه","1ـ2",null,null,null,null,null,null,null,null,null,null,null,null,null,null,null,null,null,null,null,null,null,"3/1"]
[{"$f":"SUBTOTAL(3,$B$8:B188)","v":47},"عزه محمود سالم محمد الخطيب","1ـ3",null,null,null,null,null,null,null,null,null,null,null,null,null,null,null,null,null,null,null,null,null,null,null,null,null,null,null,null,null,null,null,null,null,null,{"$f":"SUBTOTAL(3,$B$8:B188)","v":47},"  /    /    ",null,"  /   /    ",null,"  /   /    ",null,null,{"$f":"SUBTOTAL(3,$B$8:B188)","v":47},"عزه محمود سالم محمد الخطيب","1ـ3",null,null,null,null,null,null,null,null,null,null,null,null,null,null,null,null,null,null,null,null,null,"3/1"]
[{"$f":"SUBTOTAL(3,$B$8:B189)","v":47},"عهد محمد محمد عبدالعزيز","1ـ3",null,null,null,null,null,null,null,null,null,null,null,null,null,null,null,null,null,null,null,null,null,null,null,null,null,null,null,null,null,null,null,null,null,null,{"$f":"SUBTOTAL(3,$B$8:B189)","v":47},"  /    /    ",null,"  /   /    ",null,"  /   /    ",null,null,{"$f":"SUBTOTAL(3,$B$8:B189)","v":47},"عهد محمد محمد عبدالعزيز","1ـ3",null,null,null,null,null,null,null,null,null,null,null,null,null,null,null,null,null,null,null,null,null,"3/1"]
[{"$f":"SUBTOTAL(3,$B$8:B190)","v":47},"فاطمة عمرو اسماعيل محمود سلامه","1ـ3",null,null,null,null,null,null,null,null,null,null,null,null,null,null,null,null,null,null,null,null,null,null,null,null,null,null,null,null,null,null,null,null,null,null,{"$f":"SUBTOTAL(3,$B$8:B190)","v":47},"  /    /    ",null,"  /   /    ",null,"  /   /    ",null,null,{"$f":"SUBTOTAL(3,$B$8:B190)","v":47},"فاطمة عمرو اسماعيل محمود سلامه","1ـ3",null,null,null,null,null,null,null,null,null,null,null,null,null,null,null,null,null,null,null,null,null,"3/1"]
[{"$f":"SUBTOTAL(3,$B$8:B191)","v":47},"فاطمه على عبدالرحمن عبدالعال مشعل","1ـ4",null,null,null,null,null,null,null,null,null,null,null,null,null,null,null,null,null,null,null,null,null,null,null,null,null,null,null,null,null,null,null,null,null,null,{"$f":"SUBTOTAL(3,$B$8:B191)","v":47},"  /    /    ",null,"  /   /    ",null,"  /   /    ",null,null,{"$f":"SUBTOTAL(3,$B$8:B191)","v":47},"فاطمه على عبدالرحمن عبدالعال مشعل","1ـ4",null,null,null,null,null,null,null,null,null,null,null,null,null,null,null,null,null,null,null,null,null,"4/1"]
[{"$f":"SUBTOTAL(3,$B$8:B192)","v":47},"فاطمه محمد محمود كامل","1ـ4",null,null,null,null,null,null,null,null,null,null,null,null,null,null,null,null,null,null,null,null,null,null,null,null,null,null,null,null,null,null,null,null,null,null,{"$f":"SUBTOTAL(3,$B$8:B192)","v":47},"  /    /    ",null,"  /   /    ",null,"  /   /    ",null,null,{"$f":"SUBTOTAL(3,$B$8:B192)","v":47},"فاطمه محمد محمود كامل","1ـ4",null,null,null,null,null,null,null,null,null,null,null,null,null,null,null,null,null,null,null,null,null,"4/1"]
[{"$f":"SUBTOTAL(3,$B$8:B193)","v":47},"فاطمه محمود محمد العيسوى فاروق","1ـ4",null,null,null,null,null,null,null,null,null,null,null,null,null,null,null,null,null,null,null,null,null,null,null,null,null,null,null,null,null,null,null,null,null,null,{"$f":"SUBTOTAL(3,$B$8:B193)","v":47},"  /    /    ",null,"  /   /    ",null,"  /   /    ",null,null,{"$f":"SUBTOTAL(3,$B$8:B193)","v":47},"فاطمه محمود محمد العيسوى فاروق","1ـ4",null,null,null,null,null,null,null,null,null,null,null,null,null,null,null,null,null,null,null,null,null,"4/1"]
[{"$f":"SUBTOTAL(3,$B$8:B194)","v":47},"فرحه احمد طاهر عبدالفتاح قطب","1ـ4",null,null,null,null,null,null,null,null,null,null,null,null,null,null,null,null,null,null,null,null,null,null,null,null,null,null,null,null,null,null,null,null,null,null,{"$f":"SUBTOTAL(3,$B$8:B194)","v":47},"  /    /    ",null,"  /   /    ",null,"  /   /    ",null,null,{"$f":"SUBTOTAL(3,$B$8:B194)","v":47},"فرحه احمد طاهر عبدالفتاح قطب","1ـ4",null,null,null,null,null,null,null,null,null,null,null,null,null,null,null,null,null,null,null,null,null,"4/1"]
[{"$f":"SUBTOTAL(3,$B$8:B195)","v":47},"فرحه سعيد السيد سعيد الفخرانى","1ـ4",null,null,null,null,null,null,null,null,null,null,null,null,null,null,null,null,null,null,null,null,null,null,null,null,null,null,null,null,null,null,null,null,null,null,{"$f":"SUBTOTAL(3,$B$8:B195)","v":47},"  /    /    ",null,"  /   /    ",null,"  /   /    ",null,null,{"$f":"SUBTOTAL(3,$B$8:B195)","v":47},"فرحه سعيد السيد سعيد الفخرانى","1ـ4",null,null,null,null,null,null,null,null,null,null,null,null,null,null,null,null,null,null,null,null,null,"4/1"]
[{"$f":"SUBTOTAL(3,$B$8:B196)","v":47},"فرحه شوشه فرج عبدالصادق رشوان","1ـ4",null,null,null,null,null,null,null,null,null,null,null,null,null,null,null,null,null,null,null,null,null,null,null,null,null,null,null,null,null,null,null,null,null,null,{"$f":"SUBTOTAL(3,$B$8:B196)","v":47},"  /    /    ",null,"  /   /    ",null,"  /   /    ",null,null,{"$f":"SUBTOTAL(3,$B$8:B196)","v":47},"فرحه شوشه فرج عبدالصادق رشوان","1ـ4",null,null,null,null,null,null,null,null,null,null,null,null,null,null,null,null,null,null,null,null,null,"4/1"]
[{"$f":"SUBTOTAL(3,$B$8:B197)","v":47},"فرحه عيد قبارى سيد احمد الرفاعى","1ـ4",null,null,null,null,null,null,null,null,null,null,null,null,null,null,null,null,null,null,null,null,null,null,null,null,null,null,null,null,null,null,null,null,null,null,{"$f":"SUBTOTAL(3,$B$8:B197)","v":47},"  /    /    ",null,"  /   /    ",null,"  /   /    ",null,null,{"$f":"SUBTOTAL(3,$B$8:B197)","v":47},"فرحه عيد قبارى سيد احمد الرفاعى","1ـ4",null,null,null,null,null,null,null,null,null,null,null,null,null,null,null,null,null,null,null,null,null,"4/1"]
[{"$f":"SUBTOTAL(3,$B$8:B198)","v":47},"كرما محمد صبحى القطب كوته","1ـ4",null,null,null,null,null,null,null,null,null,null,null,null,null,null,null,null,null,null,null,null,null,null,null,null,null,null,null,null,null,null,null,null,null,null,{"$f":"SUBTOTAL(3,$B$8:B198)","v":47},"  /    /    ",null,"  /   /    ",null,"  /   /    ",null,null,{"$f":"SUBTOTAL(3,$B$8:B198)","v":47},"كرما محمد صبحى القطب كوته","1ـ4",null,null,null,null,null,null,null,null,null,null,null,null,null,null,null,null,null,null,null,null,null,"4/1"]
[{"$f":"SUBTOTAL(3,$B$8:B199)","v":47},"كنزى احمد شوقى تايب","1ـ4",null,null,null,null,null,null,null,null,null,null,null,null,null,null,null,null,null,null,null,null,null,null,null,null,null,null,null,null,null,null,null,null,null,null,{"$f":"SUBTOTAL(3,$B$8:B199)","v":47},"  /    /    ",null,"  /   /    ",null,"  /   /    ",null,null,{"$f":"SUBTOTAL(3,$B$8:B199)","v":47},"كنزى احمد شوقى تايب","1ـ4",null,null,null,null,null,null,null,null,null,null,null,null,null,null,null,null,null,null,null,null,null,"4/1"]
[{"$f":"SUBTOTAL(3,$B$8:B200)","v":47},"لليان عمرو عبدالمعبود شعبان","1ـ4",null,null,null,null,null,null,null,null,null,null,null,null,null,null,null,null,null,null,null,null,null,null,null,null,null,null,null,null,null,null,null,null,null,null,{"$f":"SUBTOTAL(3,$B$8:B200)","v":47},"  /    /    ",null,"  /   /    ",null,"  /   /    ",null,null,{"$f":"SUBTOTAL(3,$B$8:B200)","v":47},"لليان عمرو عبدالمعبود شعبان","1ـ4",null,null,null,null,null,null,null,null,null,null,null,null,null,null,null,null,null,null,null,null,null,"4/1"]
[{"$f":"SUBTOTAL(3,$B$8:B201)","v":47},"لمار محمد احمد عثمان ابراهيم","1ـ4",null,null,null,null,null,null,null,null,null,null,null,null,null,null,null,null,null,null,null,null,null,null,null,null,null,null,null,null,null,null,null,null,null,null,{"$f":"SUBTOTAL(3,$B$8:B201)","v":47},"  /    /    ",null,"  /   /    ",null,"  /   /    ",null,null,{"$f":"SUBTOTAL(3,$B$8:B201)","v":47},{"$f":"B201","v":"لمار محمد احمد عثمان ابراهيم"},{"$f":"C201","v":"1ـ4"},null,null,null,null,null,null,null,null,null,null,null,null,null,null,null,null,null,null,null,null,null,"4/1"]
[{"$f":"SUBTOTAL(3,$B$8:B202)","v":47},"مريم تامر على السيد المجاعص","1ـ4",null,null,null,null,null,null,null,null,null,null,null,null,null,null,null,null,null,null,null,null,null,null,null,null,null,null,null,null,null,null,null,null,null,null,{"$f":"SUBTOTAL(3,$B$8:B202)","v":47},"  /    /    ",null,"  /   /    ",null,"  /   /    ",null,null,{"$f":"SUBTOTAL(3,$B$8:B202)","v":47},"مريم تامر على السيد المجاعص","1ـ4",null,null,null,null,null,null,null,null,null,null,null,null,null,null,null,null,null,null,null,null,null,"4/1"]
[{"$f":"SUBTOTAL(3,$B$8:B203)","v":47},"مريم سامح رجب الصفتى","1ـ4",null,null,null,null,null,null,null,null,null,null,null,null,null,null,null,null,null,null,null,null,null,null,null,null,null,null,null,null,null,null,null,null,null,null,{"$f":"SUBTOTAL(3,$B$8:B203)","v":47},"  /    /    ",null,"  /   /    ",null,"  /   /    ",null,null,{"$f":"SUBTOTAL(3,$B$8:B203)","v":47},"مريم سامح رجب الصفتى","1ـ4",null,null,null,null,null,null,null,null,null,null,null,null,null,null,null,null,null,null,null,null,null,"4/1"]
[{"$f":"SUBTOTAL(3,$B$8:B204)","v":47},"مريم شكري عاطف عبد المنعم ابو حريش","1ـ4",null,null,null,null,null,null,null,null,null,null,null,null,null,null,null,null,null,null,null,null,null,null,null,null,null,null,null,null,null,null,null,null,null,null,{"$f":"SUBTOTAL(3,$B$8:B204)","v":47},"  /    /    ",null,"  /   /    ",null,"  /   /    ",null,null,{"$f":"SUBTOTAL(3,$B$8:B204)","v":47},"مريم شكري عاطف عبد المنعم ابو حريش","1ـ4",null,null,null,null,null,null,null,null,null,null,null,null,null,null,null,null,null,null,null,null,null,"4/1"]
[{"$f":"SUBTOTAL(3,$B$8:B205)","v":47},"مريم محمد عبدالحميد الصعيدى معتمد","1ـ4",null,null,null,null,null,null,null,null,null,null,null,null,null,null,null,null,null,null,null,null,null,null,null,null,null,null,null,null,null,null,null,null,null,null,{"$f":"SUBTOTAL(3,$B$8:B205)","v":47},"  /    /    ",null,"  /   /    ",null,"  /   /    ",null,null,{"$f":"SUBTOTAL(3,$B$8:B205)","v":47},"مريم محمد عبدالحميد الصعيدى معتمد","1ـ4",null,null,null,null,null,null,null,null,null,null,null,null,null,null,null,null,null,null,null,null,null,"4/1"]
[{"$f":"SUBTOTAL(3,$B$8:B206)","v":47},"مريم محمد محمد عبد الصمد زيدان","1ـ4",null,null,null,null,null,null,null,null,null,null,null,null,null,null,null,null,null,null,null,null,null,null,null,null,null,null,null,null,null,null,null,null,null,null,{"$f":"SUBTOTAL(3,$B$8:B206)","v":47},"  /    /    ",null,"  /   /    ",null,"  /   /    ",null,null,{"$f":"SUBTOTAL(3,$B$8:B206)","v":47},"مريم محمد محمد عبد الصمد زيدان","1ـ4",null,null,null,null,null,null,null,null,null,null,null,null,null,null,null,null,null,null,null,null,null,"4/1"]
[{"$f":"SUBTOTAL(3,$B$8:B207)","v":47},"ملك السيد عبداللطيف عبدالقادر","1ـ4",null,null,null,null,null,null,null,null,null,null,null,null,null,null,null,null,null,null,null,null,null,null,null,null,null,null,null,null,null,null,null,null,null,null,{"$f":"SUBTOTAL(3,$B$8:B207)","v":47},"  /    /    ",null,"  /   /    ",null,"  /   /    ",null,null,{"$f":"SUBTOTAL(3,$B$8:B207)","v":47},"ملك السيد عبداللطيف عبدالقادر","1ـ4",null,null,null,null,null,null,null,null,null,null,null,null,null,null,null,null,null,null,null,null,null,"4/1"]
[{"$f":"SUBTOTAL(3,$B$8:B208)","v":47},"ملك عبدالجواد صلاح عبدالجواد حسين","1ـ4",null,null,null,null,null,null,null,null,null,null,null,null,null,null,null,null,null,null,null,null,null,null,null,null,null,null,null,null,null,null,null,null,null,null,{"$f":"SUBTOTAL(3,$B$8:B208)","v":47},"  /    /    ",null,"  /   /    ",null,"  /   /    ",null,null,{"$f":"SUBTOTAL(3,$B$8:B208)","v":47},"ملك عبدالجواد صلاح عبدالجواد حسين","1ـ4",null,null,null,null,null,null,null,null,null,null,null,null,null,null,null,null,null,null,null,null,null,"4/1"]
[{"$f":"SUBTOTAL(3,$B$8:B209)","v":47},"ملك عبدالناصر عبدالقادر عبدالجواد نايل","1ـ4",null,null,null,null,null,null,null,null,null,null,null,null,null,null,null,null,null,null,null,null,null,null,null,null,null,null,null,null,null,null,null,null,null,null,{"$f":"SUBTOTAL(3,$B$8:B209)","v":47},"  /    /    ",null,"  /   /    ",null,"  /   /    ",null,null,{"$f":"SUBTOTAL(3,$B$8:B209)","v":47},"ملك عبدالناصر عبدالقادر عبدالجواد نايل","1ـ4",null,null,null,null,null,null,null,null,null,null,null,null,null,null,null,null,null,null,null,null,null,"4/1"]
[{"$f":"SUBTOTAL(3,$B$8:B210)","v":47},"ملك محمد ابوالعنين عبدالحميد ابوسلام","1ـ4",null,null,null,null,null,null,null,null,null,null,null,null,null,null,null,null,null,null,null,null,null,null,null,null,null,null,null,null,null,null,null,null,null,null,{"$f":"SUBTOTAL(3,$B$8:B210)","v":47},"  /    /    ",null,"  /   /    ",null,"  /   /    ",null,null,{"$f":"SUBTOTAL(3,$B$8:B210)","v":47},"ملك محمد ابوالعنين عبدالحميد ابوسلام","1ـ4",null,null,null,null,null,null,null,null,null,null,null,null,null,null,null,null,null,null,null,null,null,"4/1"]
[{"$f":"SUBTOTAL(3,$B$8:B211)","v":47},"ملك محمد رجب محمود الطناحى","1ـ4",null,null,null,null,null,null,null,null,null,null,null,null,null,null,null,null,null,null,null,null,null,null,null,null,null,null,null,null,null,null,null,null,null,null,{"$f":"SUBTOTAL(3,$B$8:B211)","v":47},"  /    /    ",null,"  /   /    ",null,"  /   /    ",null,null,{"$f":"SUBTOTAL(3,$B$8:B211)","v":47},"ملك محمد رجب محمود الطناحى","1ـ4",null,null,null,null,null,null,null,null,null,null,null,null,null,null,null,null,null,null,null,null,null,"4/1"]
[{"$f":"SUBTOTAL(3,$B$8:B212)","v":47},"ملك محمد رشاد ابوعاليه","1ـ4",null,null,null,null,null,null,null,null,null,null,null,null,null,null,null,null,null,null,null,null,null,null,null,null,null,null,null,null,null,null,null,null,null,null,{"$f":"SUBTOTAL(3,$B$8:B212)","v":47},"  /    /    ",null,"  /   /    ",null,"  /   /    ",null,null,{"$f":"SUBTOTAL(3,$B$8:B212)","v":47},"ملك محمد رشاد ابوعاليه","1ـ4",null,null,null,null,null,null,null,null,null,null,null,null,null,null,null,null,null,null,null,null,null,"4/1"]
[{"$f":"SUBTOTAL(3,$B$8:B213)","v":47},"ملك محمد عبدالمنعم محمد الزاوى","1ـ4",null,null,null,null,null,null,null,null,null,null,null,null,null,null,null,null,null,null,null,null,null,null,null,null,null,null,null,null,null,null,null,null,null,null,{"$f":"SUBTOTAL(3,$B$8:B213)","v":47},"  /    /    ",null,"  /   /    ",null,"  /   /    ",null,null,{"$f":"SUBTOTAL(3,$B$8:B213)","v":47},"ملك محمد عبدالمنعم محمد الزاوى","1ـ4",null,null,null,null,null,null,null,null,null,null,null,null,null,null,null,null,null,null,null,null,null,"4/1"]
[{"$f":"SUBTOTAL(3,$B$8:B214)","v":47},"ملك مدحت عبدالقادر محمد","1ـ5",null,null,null,null,null,null,null,null,null,null,null,null,null,null,null,null,null,null,null,null,null,null,null,null,null,null,null,null,null,null,null,null,null,null,{"$f":"SUBTOTAL(3,$B$8:B214)","v":47},"  /    /    ",null,"  /   /    ",null,"  /   /    ",null,null,{"$f":"SUBTOTAL(3,$B$8:B214)","v":47},"ملك مدحت عبدالقادر محمد","1ـ5",null,null,null,null,null,null,null,null,null,null,null,null,null,null,null,null,null,null,null,null,null,"4/1"]
[{"$f":"SUBTOTAL(3,$B$8:B215)","v":47},"ملك وليد عبد الواحد محمد محمد","1ـ5",null,null,null,null,null,null,null,null,null,null,null,null,null,null,null,null,null,null,null,null,null,null,null,null,null,null,null,null,null,null,null,null,null,null,{"$f":"SUBTOTAL(3,$B$8:B215)","v":47},"  /    /    ",null,"  /   /    ",null,"  /   /    ",null,null,{"$f":"SUBTOTAL(3,$B$8:B215)","v":47},"ملك وليد عبد الواحد محمد محمد","1ـ5",null,null,null,null,null,null,null,null,null,null,null,null,null,null,null,null,null,null,null,null,null,"4/1"]
[{"$f":"SUBTOTAL(3,$B$8:B216)","v":47},"منار وليد ابراهيم السيد شلبى","1ـ5",null,null,null,null,null,null,null,null,null,null,null,null,null,null,null,null,null,null,null,null,null,null,null,null,null,null,null,null,null,null,null,null,null,null,{"$f":"SUBTOTAL(3,$B$8:B216)","v":47},"  /    /    ",null,"  /   /    ",null,"  /   /    ",null,null,{"$f":"SUBTOTAL(3,$B$8:B216)","v":47},"منار وليد ابراهيم السيد شلبى","1ـ5",null,null,null,null,null,null,null,null,null,null,null,null,null,null,null,null,null,null,null,null,null,"4/1"]
[{"$f":"SUBTOTAL(3,$B$8:B217)","v":47},"منه الله ابراهيم محمد توفيق محمد","1ـ5",null,null,null,null,null,null,null,null,null,null,null,null,null,null,null,null,null,null,null,null,null,null,null,null,null,null,null,null,null,null,null,null,null,null,{"$f":"SUBTOTAL(3,$B$8:B217)","v":47},"  /    /    ",null,"  /   /    ",null,"  /   /    ",null,null,{"$f":"SUBTOTAL(3,$B$8:B217)","v":47},"منه الله ابراهيم محمد توفيق محمد","1ـ5",null,null,null,null,null,null,null,null,null,null,null,null,null,null,null,null,null,null,null,null,null,"4/1"]
[{"$f":"SUBTOTAL(3,$B$8:B218)","v":47},"منه الله المرسى عبدالغفار المرسى","1ـ5",null,null,null,null,null,null,null,null,null,null,null,null,null,null,null,null,null,null,null,null,null,null,null,null,null,null,null,null,null,null,null,null,null,null,{"$f":"SUBTOTAL(3,$B$8:B218)","v":47},"  /    /    ",null,"  /   /    ",null,"  /   /    ",null,null,{"$f":"SUBTOTAL(3,$B$8:B218)","v":47},"منه الله المرسى عبدالغفار المرسى","1ـ5",null,null,null,null,null,null,null,null,null,null,null,null,null,null,null,null,null,null,null,null,null,"4/1"]
[{"$f":"SUBTOTAL(3,$B$8:B219)","v":47},"منه الله حازم امين مصطفى القونى","1ـ4",null,null,null,null,null,null,null,null,null,null,null,null,null,null,null,null,null,null,null,null,null,null,null,null,null,null,null,null,null,null,null,null,null,null,{"$f":"SUBTOTAL(3,$B$8:B219)","v":47},"  /    /    ",null,"  /   /    ",null,"  /   /    ",null,null,{"$f":"SUBTOTAL(3,$B$8:B219)","v":47},"منه الله حازم امين مصطفى القونى","1ـ4",null,null,null,null,null,null,null,null,null,null,null,null,null,null,null,null,null,null,null,null,null,"4/1"]
[{"$f":"SUBTOTAL(3,$B$8:B220)","v":47},"منه رشاد صابر القبلاوى","1ـ5",null,null,null,null,null,null,null,null,null,null,null,null,null,null,null,null,null,null,null,null,null,null,null,null,null,null,null,null,null,null,null,null,null,null,{"$f":"SUBTOTAL(3,$B$8:B220)","v":47},"  /    /    ",null,"  /   /    ",null,"  /   /    ",null,null,{"$f":"SUBTOTAL(3,$B$8:B220)","v":47},"منه رشاد صابر القبلاوى","1ـ5",null,null,null,null,null,null,null,null,null,null,null,null,null,null,null,null,null,null,null,null,null,"5/1"]
[{"$f":"SUBTOTAL(3,$B$8:B221)","v":47},"منه شعبان فتحى ابراهيم فويله","1ـ5",null,null,null,null,null,null,null,null,null,null,null,null,null,null,null,null,null,null,null,null,null,null,null,null,null,null,null,null,null,null,null,null,null,null,{"$f":"SUBTOTAL(3,$B$8:B221)","v":47},"  /    /    ",null,"  /   /    ",null,"  /   /    ",null,null,{"$f":"SUBTOTAL(3,$B$8:B221)","v":47},"منه شعبان فتحى ابراهيم فويله","1ـ5",null,null,null,null,null,null,null,null,null,null,null,null,null,null,null,null,null,null,null,null,null,"5/1"]
[{"$f":"SUBTOTAL(3,$B$8:B222)","v":47},"منه محمد دياب على مرسى","1ـ5",null,null,null,null,null,null,null,null,null,null,null,null,null,null,null,null,null,null,null,null,null,null,null,null,null,null,null,null,null,null,null,null,null,null,{"$f":"SUBTOTAL(3,$B$8:B222)","v":47},"  /    /    ",null,"  /   /    ",null,"  /   /    ",null,null,{"$f":"SUBTOTAL(3,$B$8:B222)","v":47},"منه محمد دياب على مرسى","1ـ5",null,null,null,null,null,null,null,null,null,null,null,null,null,null,null,null,null,null,null,null,null,"5/1"]
[{"$f":"SUBTOTAL(3,$B$8:B223)","v":47},"منى ابراهيم محمد على","1ـ5",null,null,null,null,null,null,null,null,null,null,null,null,null,null,null,null,null,null,null,null,null,null,null,null,null,null,null,null,null,null,null,null,null,null,{"$f":"SUBTOTAL(3,$B$8:B223)","v":47},"  /    /    ",null,"  /   /    ",null,"  /   /    ",null,null,{"$f":"SUBTOTAL(3,$B$8:B223)","v":47},"منى ابراهيم محمد على","1ـ5",null,null,null,null,null,null,null,null,null,null,null,null,null,null,null,null,null,null,null,null,null,"5/1"]
[{"$f":"SUBTOTAL(3,$B$8:B224)","v":47},"منى حمدى محمد السيد عبد الله","1ـ5",null,null,null,null,null,null,null,null,null,null,null,null,null,null,null,null,null,null,null,null,null,null,null,null,null,null,null,null,null,null,null,null,null,null,{"$f":"SUBTOTAL(3,$B$8:B224)","v":47},"  /    /    ",null,"  /   /    ",null,"  /   /    ",null,null,{"$f":"SUBTOTAL(3,$B$8:B224)","v":47},"منى حمدى محمد السيد عبد الله","1ـ5",null,null,null,null,null,null,null,null,null,null,null,null,null,null,null,null,null,null,null,null,null,"5/1"]
[{"$f":"SUBTOTAL(3,$B$8:B225)","v":47},"ميار السيد ابراهيم متولى","1ـ5",null,null,null,null,null,null,null,null,null,null,null,null,null,null,null,null,null,null,null,null,null,null,null,null,null,null,null,null,null,null,null,null,null,null,{"$f":"SUBTOTAL(3,$B$8:B225)","v":47},"  /    /    ",null,"  /   /    ",null,"  /   /    ",null,null,{"$f":"SUBTOTAL(3,$B$8:B225)","v":47},"ميار السيد ابراهيم متولى","1ـ5",null,null,null,null,null,null,null,null,null,null,null,null,null,null,null,null,null,null,null,null,null,"5/1"]
[{"$f":"SUBTOTAL(3,$B$8:B226)","v":47},"ناديه صالح حلمى عاشور","1ـ5",null,null,null,null,null,null,null,null,null,null,null,null,null,null,null,null,null,null,null,null,null,null,null,null,null,null,null,null,null,null,null,null,null,null,{"$f":"SUBTOTAL(3,$B$8:B226)","v":47},"  /    /    ",null,"  /   /    ",null,"  /   /    ",null,null,{"$f":"SUBTOTAL(3,$B$8:B226)","v":47},"ناديه صالح حلمى عاشور","1ـ5",null,null,null,null,null,null,null,null,null,null,null,null,null,null,null,null,null,null,null,null,null,"5/1"]
[{"$f":"SUBTOTAL(3,$B$8:B227)","v":47},"ناديه عيد وحيد عيد ابوسلامه","1ـ5",null,null,null,null,null,null,null,null,null,null,null,null,null,null,null,null,null,null,null,null,null,null,null,null,null,null,null,null,null,null,null,null,null,null,{"$f":"SUBTOTAL(3,$B$8:B227)","v":47},"  /    /    ",null,"  /   /    ",null,"  /   /    ",null,null,{"$f":"SUBTOTAL(3,$B$8:B227)","v":47},"ناديه عيد وحيد عيد ابوسلامه","1ـ5",null,null,null,null,null,null,null,null,null,null,null,null,null,null,null,null,null,null,null,null,null,"5/1"]
[{"$f":"SUBTOTAL(3,$B$8:B228)","v":47},"ندى صلاح محمد سلطان","1ـ5",null,null,null,null,null,null,null,null,null,null,null,null,null,null,null,null,null,null,null,null,null,null,null,null,null,null,null,null,null,null,null,null,null,null,{"$f":"SUBTOTAL(3,$B$8:B228)","v":47},"  /    /    ",null,"  /   /    ",null,"  /   /    ",null,null,{"$f":"SUBTOTAL(3,$B$8:B228)","v":47},"ندى صلاح محمد سلطان","1ـ5",null,null,null,null,null,null,null,null,null,null,null,null,null,null,null,null,null,null,null,null,null,"5/1"]
[{"$f":"SUBTOTAL(3,$B$8:B229)","v":47},"ندى عبدالرازق محمد عزام الاسرج","1ـ5",null,null,null,null,null,null,null,null,null,null,null,null,null,null,null,null,null,null,null,null,null,null,null,null,null,null,null,null,null,null,null,null,null,null,{"$f":"SUBTOTAL(3,$B$8:B229)","v":47},"  /    /    ",null,"  /   /    ",null,"  /   /    ",null,null,{"$f":"SUBTOTAL(3,$B$8:B229)","v":47},"ندى عبدالرازق محمد عزام الاسرج","1ـ5",null,null,null,null,null,null,null,null,null,null,null,null,null,null,null,null,null,null,null,null,null,"5/1"]
[{"$f":"SUBTOTAL(3,$B$8:B230)","v":47},"نسمه فهمى سعد ابراهيم","1ـ5",null,null,null,null,null,null,null,null,null,null,null,null,null,null,null,null,null,null,null,null,null,null,null,null,null,null,null,null,null,null,null,null,null,null,{"$f":"SUBTOTAL(3,$B$8:B230)","v":47},"  /    /    ",null,"  /   /    ",null,"  /   /    ",null,null,{"$f":"SUBTOTAL(3,$B$8:B230)","v":47},"نسمه فهمى سعد ابراهيم","1ـ5",null,null,null,null,null,null,null,null,null,null,null,null,null,null,null,null,null,null,null,null,null,"5/1"]
[{"$f":"SUBTOTAL(3,$B$8:B231)","v":47},"نورين شفيق السعيد شفيق عماره","1ـ5",null,null,null,null,null,null,null,null,null,null,null,null,null,null,null,null,null,null,null,null,null,null,null,null,null,null,null,null,null,null,null,null,null,null,{"$f":"SUBTOTAL(3,$B$8:B231)","v":47},"  /    /    ",null,"  /   /    ",null,"  /   /    ",null,null,{"$f":"SUBTOTAL(3,$B$8:B231)","v":47},"نورين شفيق السعيد شفيق عماره","1ـ5",null,null,null,null,null,null,null,null,null,null,null,null,null,null,null,null,null,null,null,null,null,"5/1"]
[{"$f":"SUBTOTAL(3,$B$8:B232)","v":47},"هاجر احمد سعيد احمد الفخرانى","1ـ5",null,null,null,null,null,null,null,null,null,null,null,null,null,null,null,null,null,null,null,null,null,null,null,null,null,null,null,null,null,null,null,null,null,null,{"$f":"SUBTOTAL(3,$B$8:B232)","v":47},"  /    /    ",null,"  /   /    ",null,"  /   /    ",null,null,{"$f":"SUBTOTAL(3,$B$8:B232)","v":47},"هاجر احمد سعيد احمد الفخرانى","1ـ5",null,null,null,null,null,null,null,null,null,null,null,null,null,null,null,null,null,null,null,null,null,"5/1"]
[{"$f":"SUBTOTAL(3,$B$8:B233)","v":47},"هبه محمد السيد ابوالمجد مصطفى","1ـ5",null,null,null,null,null,null,null,null,null,null,null,null,null,null,null,null,null,null,null,null,null,null,null,null,null,null,null,null,null,null,null,null,null,null,{"$f":"SUBTOTAL(3,$B$8:B233)","v":47},"  /    /    ",null,"  /   /    ",null,"  /   /    ",null,null,{"$f":"SUBTOTAL(3,$B$8:B233)","v":47},"هبه محمد السيد ابوالمجد مصطفى","1ـ5",null,null,null,null,null,null,null,null,null,null,null,null,null,null,null,null,null,null,null,null,null,"5/1"]
[{"$f":"SUBTOTAL(3,$B$8:B234)","v":47},"هدى احمد المغاورى رمضان","1ـ5",null,null,null,null,null,null,null,null,null,null,null,null,null,null,null,null,null,null,null,null,null,null,null,null,null,null,null,null,null,null,null,null,null,null,{"$f":"SUBTOTAL(3,$B$8:B234)","v":47},"  /    /    ",null,"  /   /    ",null,"  /   /    ",null,null,{"$f":"SUBTOTAL(3,$B$8:B234)","v":47},"هدى احمد المغاورى رمضان","1ـ5",null,null,null,null,null,null,null,null,null,null,null,null,null,null,null,null,null,null,null,null,null,"5/1"]
[{"$f":"SUBTOTAL(3,$B$8:B235)","v":47},"هنا خالد محمد محمد","1ـ5",null,null,null,null,null,null,null,null,null,null,null,null,null,null,null,null,null,null,null,null,null,null,null,null,null,null,null,null,null,null,null,null,null,null,{"$f":"SUBTOTAL(3,$B$8:B235)","v":47},"  /    /    ",null,"  /   /    ",null,"  /   /    ",null,null,{"$f":"SUBTOTAL(3,$B$8:B235)","v":47},"هنا خالد محمد محمد","1ـ5",null,null,null,null,null,null,null,null,null,null,null,null,null,null,null,null,null,null,null,null,null,"5/1"]
[{"$f":"SUBTOTAL(3,$B$8:B236)","v":47},"هنزاده محمود محمد محمد بكير اغا","1ـ5",null,null,null,null,null,null,null,null,null,null,null,null,null,null,null,null,null,null,null,null,null,null,null,null,null,null,null,null,null,null,null,null,null,null,{"$f":"SUBTOTAL(3,$B$8:B236)","v":47},"  /    /    ",null,"  /   /    ",null,"  /   /    ",null,null,{"$f":"SUBTOTAL(3,$B$8:B236)","v":47},"هنزاده محمود محمد محمد بكير اغا","1ـ5",null,null,null,null,null,null,null,null,null,null,null,null,null,null,null,null,null,null,null,null,null,"5/1"]
[{"$f":"SUBTOTAL(3,$B$8:B237)","v":47},"يارا سامى جمال ابواليزيد الجمال","1ـ5",null,null,null,null,null,null,null,null,null,null,null,null,null,null,null,null,null,null,null,null,null,null,null,null,null,null,null,null,null,null,null,null,null,null,{"$f":"SUBTOTAL(3,$B$8:B237)","v":47},"  /    /    ",null,"  /   /    ",null,"  /   /    ",null,null,{"$f":"SUBTOTAL(3,$B$8:B237)","v":47},"يارا سامى جمال ابواليزيد الجمال","1ـ5",null,null,null,null,null,null,null,null,null,null,null,null,null,null,null,null,null,null,null,null,null,"5/1"]
[{"$f":"SUBTOTAL(3,$B$8:B238)","v":47},"ياسمين احمد مجدى ابوشادى","1ـ5",null,null,null,null,null,null,null,null,null,null,null,null,null,null,null,null,null,null,null,null,null,null,null,null,null,null,null,null,null,null,null,null,null,null,{"$f":"SUBTOTAL(3,$B$8:B238)","v":47},"  /    /    ",null,"  /   /    ",null,"  /   /    ",null,null,{"$f":"SUBTOTAL(3,$B$8:B238)","v":47},"ياسمين احمد مجدى ابوشادى","1ـ5",null,null,null,null,null,null,null,null,null,null,null,null,null,null,null,null,null,null,null,null,null,"5/1"]
[{"$f":"SUBTOTAL(3,$B$8:B239)","v":47},"ياسمين سامح محمد عبدالفتاح حمام","1ـ5",null,null,null,null,null,null,null,null,null,null,null,null,null,null,null,null,null,null,null,null,null,null,null,null,null,null,null,null,null,null,null,null,null,null,{"$f":"SUBTOTAL(3,$B$8:B239)","v":47},"  /    /    ",null,"  /   /    ",null,"  /   /    ",null,null,{"$f":"SUBTOTAL(3,$B$8:B239)","v":47},"ياسمين سامح محمد عبدالفتاح حمام","1ـ5",null,null,null,null,null,null,null,null,null,null,null,null,null,null,null,null,null,null,null,null,null,"5/1"]
[{"$f":"SUBTOTAL(3,$B$8:B240)","v":48},"ياسمين محمد على عاشور","1ـ1",null,null,null,null,null,null,null,null,null,null,null,null,null,null,null,null,null,null,null,null,null,null,null,null,null,null,null,null,null,null,null,null,null,null,{"$f":"SUBTOTAL(3,$B$8:B240)","v":48},"  /    /    ",null,"  /   /    ",null,"  /   /    ",null,null,{"$f":"SUBTOTAL(3,$B$8:B240)","v":48},"ياسمين محمد على عاشور","1ـ1",null,null,null,null,null,null,null,null,null,null,null,null,null,null,null,null,null,null,null,null,null,"1/1"]
[{"$f":"SUBTOTAL(3,$B$8:B241)","v":48},"   ","1ـ1",null,null,null,null,null,null,null,null,null,null,null,null,null,null,null,null,null,null,null,null,null,null,null,null,null,null,null,null,null,null,null,null,null,null,{"$f":"SUBTOTAL(3,$B$8:B241)","v":48},"  /    /    ",null,"  /   /    ",null,"  /   /    ",null,null,{"$f":"SUBTOTAL(3,$B$8:B241)","v":48},"   ",{"$f":"C241","v":"1ـ1"}]
[{"$f":"SUBTOTAL(3,$B$8:B242)","v":48}," ","1ـ1",null,null,null,null,null,null,null,null,null,null,null,null,null,null,null,null,null,null,null,null,null,null,null,null,null,null,null,null,null,null,null,null,null,null,{"$f":"SUBTOTAL(3,$B$8:B242)","v":48},"  /    /    ",null,"  /   /    ",null,"  /   /    ",null,null,{"$f":"SUBTOTAL(3,$B$8:B242)","v":48}," ","1ـ1"]
[{"$f":"SUBTOTAL(3,$B$8:B243)","v":48}," ","1ـ2",null,null,null,null,null,null,null,null,null,null,null,null,null,null,null,null,null,null,null,null,null,null,null,null,null,null,null,null,null,null,null,null,null,null,{"$f":"SUBTOTAL(3,$B$8:B243)","v":48},"  /    /    ",null,"  /   /    ",null,"  /   /    ",null,null,{"$f":"SUBTOTAL(3,$B$8:B243)","v":48}," ","1ـ2"]
[{"$f":"SUBTOTAL(3,$B$8:B244)","v":48}," ","1ـ2",null,null,null,null,null,null,null,null,null,null,null,null,null,null,null,null,null,null,null,null,null,null,null,null,null,null,null,null,null,null,null,null,null,null,{"$f":"SUBTOTAL(3,$B$8:B244)","v":48},"  /    /    ",null,"  /   /    ",null,"  /   /    ",null,null,{"$f":"SUBTOTAL(3,$B$8:B244)","v":48}," ","1ـ2"]
[{"$f":"SUBTOTAL(3,$B$8:B245)","v":48}," ","1ـ2",null,null,null,null,null,null,null,null,null,null,null,null,null,null,null,null,null,null,null,null,null,null,null,null,null,null,null,null,null,null,null,null,null,null,{"$f":"SUBTOTAL(3,$B$8:B245)","v":48},"  /    /    ",null,"  /   /    ",null,"  /   /    ",null,null,{"$f":"SUBTOTAL(3,$B$8:B245)","v":48}," ","1ـ2"]
[{"$f":"SUBTOTAL(3,$B$8:B246)","v":48}," ","1ـ3",null,null,null,null,null,null,null,null,null,null,null,null,null,null,null,null,null,null,null,null,null,null,null,null,null,null,null,null,null,null,null,null,null,null,{"$f":"SUBTOTAL(3,$B$8:B246)","v":48},"  /    /    ",null,"  /   /    ",null,"  /   /    ",null,null,{"$f":"SUBTOTAL(3,$B$8:B246)","v":48}," ","1ـ3"]
[{"$f":"SUBTOTAL(3,$B$8:B247)","v":48}," ","1ـ3",null,null,null,null,null,null,null,null,null,null,null,null,null,null,null,null,null,null,null,null,null,null,null,null,null,null,null,null,null,null,null,null,null,null,{"$f":"SUBTOTAL(3,$B$8:B247)","v":48},"  /    /    ",null,"  /   /    ",null,"  /   /    ",null,null,{"$f":"SUBTOTAL(3,$B$8:B247)","v":48}," ","1ـ3"]
[{"$f":"SUBTOTAL(3,$B$8:B248)","v":48}," ","1ـ3",null,null,null,null,null,null,null,null,null,null,null,null,null,null,null,null,null,null,null,null,null,null,null,null,null,null,null,null,null,null,null,null,null,null,{"$f":"SUBTOTAL(3,$B$8:B248)","v":48},"  /    /    ",null,"  /   /    ",null,"  /   /    ",null,null,{"$f":"SUBTOTAL(3,$B$8:B248)","v":48}," ","1ـ3"]
[{"$f":"SUBTOTAL(3,$B$8:B249)","v":48}," ","1ـ3",null,null,null,null,null,null,null,null,null,null,null,null,null,null,null,null,null,null,null,null,null,null,null,null,null,null,null,null,null,null,null,null,null,null,{"$f":"SUBTOTAL(3,$B$8:B249)","v":48},"  /    /    ",null,"  /   /    ",null,"  /   /    ",null,null,{"$f":"SUBTOTAL(3,$B$8:B249)","v":48}," ","1ـ3"]
[{"$f":"SUBTOTAL(3,$B$8:B250)","v":48}," ","1ـ4",null,null,null,null,null,null,null,null,null,null,null,null,null,null,null,null,null,null,null,null,null,null,null,null,null,null,null,null,null,null,null,null,null,null,{"$f":"SUBTOTAL(3,$B$8:B250)","v":48},"  /    /    ",null,"  /   /    ",null,"  /   /    ",null,null,{"$f":"SUBTOTAL(3,$B$8:B250)","v":48}," ","1ـ4"]
[{"$f":"SUBTOTAL(3,$B$8:B251)","v":48}," ","1ـ4",null,null,null,null,null,null,null,null,null,null,null,null,null,null,null,null,null,null,null,null,null,null,null,null,null,null,null,null,null,null,null,null,null,null,{"$f":"SUBTOTAL(3,$B$8:B251)","v":48},"  /    /    ",null,"  /   /    ",null,"  /   /    ",null,null,{"$f":"SUBTOTAL(3,$B$8:B251)","v":48}," ","1ـ4"]
[{"$f":"SUBTOTAL(3,$B$8:B252)","v":48}," ","1ـ4",null,null,null,null,null,null,null,null,null,null,null,null,null,null,null,null,null,null,null,null,null,null,null,null,null,null,null,null,null,null,null,null,null,null,{"$f":"SUBTOTAL(3,$B$8:B252)","v":48},"  /    /    ",null,"  /   /    ",null,"  /   /    ",null,null,{"$f":"SUBTOTAL(3,$B$8:B252)","v":48}," ","1ـ4"]
[{"$f":"SUBTOTAL(3,$B$8:B253)","v":48}," ","1ـ4",null,null,null,null,null,null,null,null,null,null,null,null,null,null,null,null,null,null,null,null,null,null,null,null,null,null,null,null,null,null,null,null,null,null,{"$f":"SUBTOTAL(3,$B$8:B253)","v":48},"  /    /    ",null,"  /   /    ",null,"  /   /    ",null,null,{"$f":"SUBTOTAL(3,$B$8:B253)","v":48}," ","1ـ4"]
[{"$f":"SUBTOTAL(3,$B$8:B254)","v":48}," ","1ـ5",null,null,null,null,null,null,null,null,null,null,null,null,null,null,null,null,null,null,null,null,null,null,null,null,null,null,null,null,null,null,null,null,null,null,{"$f":"SUBTOTAL(3,$B$8:B254)","v":48},"  /    /    ",null,"  /   /    ",null,"  /   /    ",null,null,{"$f":"SUBTOTAL(3,$B$8:B254)","v":48}," ","1ـ5"]
[{"$f":"SUBTOTAL(3,$B$8:B255)","v":48}," ","1ـ5",null,null,null,null,null,null,null,null,null,null,null,null,null,null,null,null,null,null,null,null,null,null,null,null,null,null,null,null,null,null,null,null,null,null,{"$f":"SUBTOTAL(3,$B$8:B255)","v":48},"  /    /    ",null,"  /   /    ",null,"  /   /    ",null,null,{"$f":"SUBTOTAL(3,$B$8:B255)","v":48}," ","1ـ5"]
[{"$f":"SUBTOTAL(3,$B$8:B256)","v":48}," ","1ـ5",null,null,null,null,null,null,null,null,null,null,null,null,null,null,null,null,null,null,null,null,null,null,null,null,null,null,null,null,null,null,null,null,null,null,{"$f":"SUBTOTAL(3,$B$8:B256)","v":48},"  /    /    ",null,"  /   /    ",null,"  /   /    ",null,null,{"$f":"SUBTOTAL(3,$B$8:B256)","v":48}," ","1ـ5"]
[{"$f":"SUBTOTAL(3,$B$8:B257)","v":48}," ","1ـ5",null,null,null,null,null,null,null,null,null,null,null,null,null,null,null,null,null,null,null,null,null,null,null,null,null,null,null,null,null,null,null,null,null,null,{"$f":"SUBTOTAL(3,$B$8:B257)","v":48},"  /    /    ",null,"  /   /    ",null,"  /   /    ",null,null,{"$f":"SUBTOTAL(3,$B$8:B257)","v":48}," ","1ـ5"]
[null,"اجمالى الغياب","1ـ1",null,null,null,null,null,null,null,null,null,null,null,null,null,null,null,null,null,null,null,null,null,null,null,null,null,null,null,null,null,null,null,null,null,null,null,null,null,null,null,null,null,null,null,"اجمالى الغياب","1ـ1"]
[null,"اجمالى الغياب","1ـ2",null,null,null,null,null,null,null,null,null,null,null,null,null,null,null,null,null,null,null,null,null,null,null,null,null,null,null,null,null,null,null,null,null,null,null,null,null,null,null,null,null,null,null,"اجمالى الغياب","1ـ2"]
[null,"اجمالى الغياب","1ـ3",null,null,null,null,null,null,null,null,null,null,null,null,null,null,null,null,null,null,null,null,null,null,null,null,null,null,null,null,null,null,null,null,null,null,null,null,null,null,null,null,null,null,null,"اجمالى الغياب","1ـ3"]
[null,"اجمالى الغياب","1ـ4",null,null,null,null,null,null,null,null,null,null,null,null,null,null,null,null,null,null,null,null,null,null,null,null,null,null,null,null,null,null,null,null,null,null,null,null,null,null,null,null,null,null,null,"اجمالى الغياب","1ـ4"]
[null,"اجمالى الغياب","1ـ5",null,null,null,null,null,null,null,null,null,null,null,null,null,null,null,null,null,null,null,null,null,null,null,null,null,null,null,null,null,null,null,null,null,null,null,null,null,null,null,null,null,null,null,"اجمالى الغياب","1ـ5"]

{"sheet":"الفصول","index":1,"n_rows":31,"n_cols":1,"rows_kept":31,"cut":false,"hidden":false,"merged":[]}
["فصل"]
["1/1"]
["2/1"]
["3/1"]
["4/1"]
["5/1"]
["6/1"]
["7/1"]
["8/1"]
["9/1"]
["10/1"]
["1/2"]
["2/2"]
["3/2"]
["4/2"]
["5/2"]
["6/2"]
["7/2"]
["8/2"]
["9/2"]
["10/2"]
["1/3"]
["2/3"]
["3/3"]
["4/3"]
["5/3"]
["6/3"]
["7/3"]
["8/3"]
["9/3"]
["10/3"]